{"text_format":"1","workbook":"xlsx","n_sheets":41,"sheets":["modList01","Инструкция","Лог обновления","Титульный","Список МО","Показатели (факт)","Показатели (2)","Потр. характеристики","Инвестиции","Инвестиции исправления","Ссылки на публикации","Комментарии","Проверка","AllSheetsInThisWorkbook","TEHSHEET","et_union_hor","et_union_vert","modInfo","modRegion","modReestr","modfrmSelectData","modfrmReestr","modUpdTemplMain","REESTR_ORG","modClassifierValidate","modProv","modHyp","modList00","modList02","modList03","modList04","modList05","modList06","modList07","modfrmDateChoose","modComm","modThisWorkbook","REESTR_MO","modfrmReestrMR","modfrmCheckUpdates","CopyList"],"not_rendered":{"charts":0,"images":16,"macros":1,"external_links":0,"defined_names":176,"comments":0,"pivot_tables":0},"unopened":[],"bounds":{"document_bytes":16777216,"sheet_cells":100000,"rows_first":2000,"rows_last":500,"rows_between":2000,"halvings":0,"cell_chars":16384,"cell_head_chars":4096},"cells_cut":0,"cells_raw":0,"read":"whole","date_system":"1900"}

{"sheet":"modList01","index":0,"n_rows":0,"n_cols":0,"rows_kept":0,"cut":false,"hidden":true,"merged":[]}

{"sheet":"Инструкция","index":1,"n_rows":102,"n_cols":27,"rows_kept":102,"cut":false,"hidden":false,"merged":[[82,4,82,6],[78,4,78,23],[79,4,79,7],[101,5,101,23],[99,5,99,18],[80,4,80,6],[80,7,80,23],[81,4,81,6],[83,7,83,23],[82,7,82,23],[81,7,81,23],[97,4,97,23],[58,7,58,23],[39,4,39,23],[70,4,70,23],[60,7,60,23],[79,8,79,23],[76,4,76,23],[73,4,73,23],[1,1,1,6],[2,1,2,2],[4,1,4,24],[6,4,18,23],[20,5,20,12],[20,15,20,23],[21,15,21,23],[34,4,38,23],[57,4,57,6],[75,4,75,23],[45,4,56,23],[69,4,69,23],[71,4,71,23],[57,7,57,23],[21,5,21,12],[40,4,44,23],[22,15,22,22],[59,7,59,23],[74,4,74,23],[59,4,59,6],[72,4,72,23],[58,4,58,6]]}
[null,null,null,null,null,null,null,null,null,null,null,null,null,null,null,null,null,null,null,null,null,null,null,null,null,null," (требуется обновление)"]
[null,null,"JKH.OPEN.INFO.BALANCE.WARM"]
[]
[]
[null,"Показатели, подлежащие раскрытию теплоснабжающими, теплосетевыми организациями"]
[]
[null,null,null,null,"• На рабочем месте должен быть установлен MS Office 2007 SP3, 2010, 2013 с полной версией MS Excel\n\n• Макросы во время работы должны быть включены (!)\n\n• Для корректной работы отчёта требуется выбрать низкий уровень безопасности\n(В меню MS Excel: Параметры Excel | Центр управления безопасностью | Параметры центра управления безопасностью | Параметры макросов | Включить все макросы | ОК)\n\n• Не рекомендуется снимать защиту с листов и каким-либо образом модифицировать защищаемые формулы и расчётные поля, в противном случае, отчёт будет отклонён системой\n\n• При сохранении следует выбирать формат XLSM (Книга Excel)"]
[]
[]
[]
[]
[]
[]
[]
[]
[]
[]
[]
[]
[]
[null,null,null,null,"A"," - необязательные для заполнения",null,null,null,null,null,null,null,null,"A"," - с формулами и константами"]
[null,null,null,null,"A"," - обязательные для заполнения",null,null,null,null,null,null,null,null,"A"," - с выбором значений до двойному клику,"]
[null,null,null,null,null,null,null,null,null,null,null,null,null,null,null,"либо с возможностью выбора даты из календаря или ручного ввода"]
[]
[]
[]
[]
[]
[]
[]
[]
[]
[]
[]
[null,null,null,null,"Если в предложенном Вам списке необходимая организация, МР/МО отсутствуют, обновите реестры с помощью кнопок\n\nВ результате синхронизации с базой данных список организаций (МР/МО) будет заменён актуальным (механизм синхронизации требует подключения к сети Интернет и основан на использовании протокола HTTPS (TCP порт 443))\n\nЕсли после обновления Вам не удалось найти необходимую организацию в списке, обратитесь к ответственному за поддержание реестра Вашего региона. Информация о региональных органах регулирования доступна по ссылке:"]
[]
[]
[]
[]
[null,null,null,null,"http://www.fstrf.ru/regions/region/showlist"]
[]
[]
[]
[]
[]
[null,null,null,null,"• При сохранении шаблона осуществляется проверка корректности данных, в том числе на наличие значений в ячейках, обязательных для заполнения\n\n• Если какая-то ячейка не удовлетворяет условию проверки, на лист «Проверка» добавляется гиперссылка на данную ячейку и указывается причина ошибки\n\n• В колонке «Статус» для каждого сообщения возможны 2 значения: ошибка и предупреждение\n\n• При наличии сообщений со статусом «Ошибка» шаблон будет отклонён системой и не будет загружен в хранилище данных, сообщения со статусом «Предупреждение» носят информационный характер, и такой шаблон будет принят системой"]
[]
[]
[]
[]
[]
[]
[]
[]
[]
[]
[]
[null,null,null,null,"Web-сайт:",null,null,"http://support.eias.ru/index.php?a=add&catid=5"]
[null,null,null,null,"Дистрибутивы:",null,null,"http://eias.ru/?page=show_distrs"]
[null,null,null,null,null,null,null,"для устранения ошибок (например, \"Compile error in hidden module\")"]
[]
[]
[]
[]
[]
[]
[]
[]
[]
[null,null,null,null,"Принципы работы с шаблоном"]
[null,null,null,null," Перед началом работы с шаблоном Вам необходимо нажать кнопку \"Приступить к заполнению\", после чего в шаблоне отобразятся листы для заполнения."]
[null,null,null,null," На листе «Титульный» нужно заполнить все ячейки голубого и синего цвета.\n Для создания печатной формы нажмите на иконку принтера на листе «Титульный» (левый верхний угол)."]
[null,null,null,null," Гиперссылки на листах вводите, не нарушая цвет ячейки (если копируете гиперссылку из браузера, то выполните двойной щелчок левой кнопки мыши по ячейке и только после этого можете вставить скопированный элемент).\n"]
[null,null,null,null," При вводе даты на расчетных листах необходимо выбрать дату из календаря (иконка справа от выбранной ячейки), либо ввести дату непосредственно в ячейку в формате - 'ДД.ММ.ГГГГ'."]
[null,null,null,null," Если какой-либо из показателей на расчетных листах для Вашей организации отсутствует, введите в поле, обязательное для заполнение, «0» (для числовых показателей) и «-» (для текстовых).\n"]
[null,null,null,null," Внимательно следите за информационными сообщениями на расчетных листах."]
[null,null,null,null," Все необходимые комментарии по всем формам Вы можете отразить на листе «Комментарии»."]
[]
[]
[]
[]
[null,null,null,null,"E-mail:",null,null,"openinfo@eias.ru"]
[null,null,null,null,"Web-сайт:",null,null,"http://eias.ru/?page=show_templates"]
[]
[]
[]
[]
[]
[]
[]
[]
[]
[]
[]
[]
[]
[]
[null,null,null,null,"При наличии подключения к Интернет, можно автоматически проверять наличие доступных обновлений. Выберите способ оповещения о наличии обновлений для отчёта:"]
[]
[null,null,null,null,null,"проверять доступные обновления (рекомендуется)",null,null,null,null,null,null,null,null,null,null,null,null,null,null,null,null,null,null,null,null,"y"]
[]
[null,null,null,null,null,"никогда не проверять наличие обновлений (не рекомендуется)"]

{"sheet":"Лог обновления","index":2,"n_rows":47,"n_cols":3,"rows_kept":47,"cut":false,"hidden":true,"merged":[]}
["Дата/Время","Сообщение","Статус"]
[]
["2014-02-25T15:27:13","Проверка доступных обновлений...","Информация"]
["2014-02-25T15:27:13","Доступно обновление до версии 6.0.1","Информация"]
["2014-02-25T15:27:13","Описание изменений: Версия 6.0.1 (только(!!!) для шаблонов версии 6.0)\n1. корректировка наименования п.4 (новое значение - \"Сведения об изменении стоимости основных фондов (в том числе за счет их ввода в эксплуатацию (вывода из эксплуатации)), их переоценки\") листа \"Показатели (факт)\",\n2. корректировка п.5, п.5.1 в части возможности ввода отрицательных значений,\n3. увеличение списка видов деятельности на листе \"Титульный\".\n\n\nЕсли версия Вашего шаблона ниже 6.0, обратитесь к администратору Вашего субъекта РФ.","Информация"]
["2014-02-25T15:27:13","Размер файла обновления: 282624 байт","Информация"]
["2014-02-25T15:27:23","Подготовка к обновлению...","Информация"]
["2014-02-25T15:27:26","Сохранение файла резервной копии: T:\\Упр. рег. в сфере КК\\Мониторинга и наблюдения организаций коммунальной сферы\\@Общая\\ЕИАС\\!!!! Шаблоны РЕГИОНАЛЬНЫЕ\\ГОТОВЫЕ ШАБЛОНЫ\\Раскрытие информации\\!!! Новые шаблоны\\ТС\\JKH.OPEN.INFO.BALANCE.WARM.BKP..xls","Информация"]
["2014-02-25T15:27:39","Резервная копия создана: T:\\Упр. рег. в сфере КК\\Мониторинга и наблюдения организаций коммунальной сферы\\@Общая\\ЕИАС\\!!!! Шаблоны РЕГИОНАЛЬНЫЕ\\ГОТОВЫЕ ШАБЛОНЫ\\Раскрытие информации\\!!! Новые шаблоны\\ТС\\JKH.OPEN.INFO.BALANCE.WARM.BKP..xls","Информация"]
["2014-02-25T15:27:39","Создание книги для установки обновлений...","Информация"]
["2014-02-25T15:27:39","Ошибка при инициализации обновления","Ошибка"]
["2014-02-25T15:28:59","Проверка доступных обновлений...","Информация"]
["2014-02-25T15:29:03","Доступно обновление до версии 6.0.1","Информация"]
["2014-02-25T15:29:03","Описание изменений: Версия 6.0.1 (только(!!!) для шаблонов версии 6.0)\n1. корректировка наименования п.4 (новое значение - \"Сведения об изменении стоимости основных фондов (в том числе за счет их ввода в эксплуатацию (вывода из эксплуатации)), их переоценки\") листа \"Показатели (факт)\",\n2. корректировка п.5, п.5.1 в части возможности ввода отрицательных значений,\n3. увеличение списка видов деятельности на листе \"Титульный\".\n\n\nЕсли версия Вашего шаблона ниже 6.0, обратитесь к администратору Вашего субъекта РФ.","Информация"]
["2014-02-25T15:29:03","Размер файла обновления: 282624 байт","Информация"]
["2014-02-25T15:29:05","Подготовка к обновлению...","Информация"]
["2014-02-25T15:29:08","Сохранение файла резервной копии: T:\\Упр. рег. в сфере КК\\Мониторинга и наблюдения организаций коммунальной сферы\\@Общая\\ЕИАС\\!!!! Шаблоны РЕГИОНАЛЬНЫЕ\\ГОТОВЫЕ ШАБЛОНЫ\\Раскрытие информации\\!!! Новые шаблоны\\ТС\\JKH.OPEN.INFO.BALANCE.WARM.BKP..xls","Информация"]
["2014-02-25T15:29:21","Резервная копия создана: T:\\Упр. рег. в сфере КК\\Мониторинга и наблюдения организаций коммунальной сферы\\@Общая\\ЕИАС\\!!!! Шаблоны РЕГИОНАЛЬНЫЕ\\ГОТОВЫЕ ШАБЛОНЫ\\Раскрытие информации\\!!! Новые шаблоны\\ТС\\JKH.OPEN.INFO.BALANCE.WARM.BKP..xls","Информация"]
["2014-02-25T15:29:21","Создание книги для установки обновлений...","Информация"]
["2014-02-25T15:29:35","Файл обновления загружен: T:\\Упр. рег. в сфере КК\\Мониторинга и наблюдения организаций коммунальной сферы\\@Общая\\ЕИАС\\!!!! Шаблоны РЕГИОНАЛЬНЫЕ\\ГОТОВЫЕ ШАБЛОНЫ\\Раскрытие информации\\!!! Новые шаблоны\\ТС\\UPDATE.JKH.OPEN.INFO.BALANCE.WARM.TO.6.0.1.75.xls","Информация"]
["2014-02-25T15:29:49","Обновление завершилось удачно! Шаблон JKH.OPEN.INFO.BALANCE.WARM.BKP..xls сохранен под именем 'JKH.OPEN.INFO.BALANCE.WARM.BKP.(v6.0.1).xls'","Информация"]
["2016-11-18T18:52:16","Проверка доступных обновлений...","Информация"]
["2016-11-18T18:52:17","Версия шаблона 6.0.1 актуальна, обновление не требуется","Информация"]
["2016-11-18T18:52:40","Проверка доступных обновлений...","Информация"]
["2016-11-18T18:52:40","Версия шаблона 6.0.1 актуальна, обновление не требуется","Информация"]
["2016-11-18T19:51:58","Проверка доступных обновлений...","Информация"]
["2016-11-18T19:51:59","Версия шаблона 6.0.1 актуальна, обновление не требуется","Информация"]
["2016-11-20T15:28:35","Проверка доступных обновлений...","Информация"]
["2016-11-20T15:28:35","Версия шаблона 6.0.1 актуальна, обновление не требуется","Информация"]
["2016-12-16T17:08:22","Проверка доступных обновлений...","Информация"]
["2016-12-16T17:08:23","Версия шаблона 6.0.1 актуальна, обновление не требуется","Информация"]
["2016-12-16T17:22:51","Проверка доступных обновлений...","Информация"]
["2016-12-16T17:22:52","Версия шаблона 6.0.1 актуальна, обновление не требуется","Информация"]
["2018-01-29T10:51:40","Проверка доступных обновлений...","Информация"]
["2018-01-29T10:51:41","Нет доступных обновлений для шаблона с кодом JKH.OPEN.INFO.BALANCE.WARM!","Информация"]
["2018-01-30T15:21:26","Проверка доступных обновлений...","Информация"]
["2018-01-30T15:21:27","Нет доступных обновлений для шаблона с кодом JKH.OPEN.INFO.BALANCE.WARM!","Информация"]
["2018-02-06T16:31:53","Проверка доступных обновлений...","Информация"]
["2018-02-06T16:31:54","Нет доступных обновлений для шаблона с кодом JKH.OPEN.INFO.BALANCE.WARM!","Информация"]
["2018-02-27T11:59:40","Проверка доступных обновлений...","Информация"]
["2018-02-27T11:59:41","Нет доступных обновлений для шаблона с кодом JKH.OPEN.INFO.BALANCE.WARM!","Информация"]
["2018-02-28T09:08:59","Проверка доступных обновлений...","Информация"]
["2018-02-28T09:09:01","Нет доступных обновлений для шаблона с кодом JKH.OPEN.INFO.BALANCE.WARM!","Информация"]
["2018-03-30T08:26:29","Проверка доступных обновлений...","Информация"]
["2018-03-30T08:26:30","Нет доступных обновлений для шаблона с кодом JKH.OPEN.INFO.BALANCE.WARM!","Информация"]
["2018-03-30T09:12:02","Проверка доступных обновлений...","Информация"]
["2018-03-30T09:12:03","Нет доступных обновлений для шаблона с кодом JKH.OPEN.INFO.BALANCE.WARM!","Информация"]

{"sheet":"Титульный","index":3,"n_rows":56,"n_cols":6,"rows_kept":56,"cut":false,"hidden":false,"merged":[[4,4,4,5]]}
[]
[]
[]
[null,null,null,null,null,"01.01.2016"]
[null,null,null,null,"Показатели, подлежащие раскрытию теплоснабжающими, теплосетевыми организациями"]
[]
[null,null,null,null,"Субъект РФ","Рязанская область"]
[]
[null,null,null,null,"Публикация","На сайте регулирующего органа"]
[]
["Сайт организации в сети Интернет",null,null,null,"По желанию организации информация раскрыта в дополнительных источниках публикации?","да"]
[]
[null,null,null,null,"Отчетный период (год)","2017"]
[]
[null,null,null,null,"Является ли данное юридическое лицо подразделением (филиалом) другой организации","да"]
[]
[null,null,null,null,"Наименование организации","ПУБЛИЧНОЕ АКЦИОНЕРНОЕ ОБЩЕСТВО \"ВТОРАЯ ГЕНЕРИРУЮЩАЯ КОМПАНИЯ ОПТОВОГО РЫНКА ЭЛЕКТРОЭНЕРГИИ\""]
[null,null,null,null,"Наименование филиала","филиал ПАО \"ОГК-2\" - Рязанская ГРЭС"]
[null,null,null,null,"ИНН","2607018122"]
[null,null,null,null,"КПП","621143001"]
[]
[null,null,null,null,"Вид деятельности","Производство (комбинированная выработка)+сбыт"]
[]
[null,null,null,null,"Производство",""]
[null,null,null,null,"Передача",""]
[null,null,null,null,"Сбыт",""]
[]
[null,null,null,null,"Режим налогообложения","общий"]
[]
[null,null,null,null,"Регулируемая организация осуществляет сдачу годового бухгалтерского баланса в налоговые органы","нет"]
[]
[null,null,null,null,"Дата направления годового бухгалтерского баланса в налоговые органы"]
[]
[null,null,null,null,"Превышает ли выручка от регулируемой деятельности 80% совокупной выручки за отчетный год","нет"]
[]
[null,null,null,null,"Организация выполняет инвестиционную программу","да"]
[]
["Печатное издание",null,null,null,"Отсутствует Интернет в границах территории муниципальных образований, где организация осуществляет регулируемые услуги","нет"]
[]
[null,null,null,null,null,"Адрес регулируемой организации"]
[null,null,null,null,"Юридический адрес","356126, КРАЙ СТАВРОПОЛЬСКИЙ, "]
[null,null,null,null,"Почтовый адрес","Промышленная ул. Д. 1 г. Новомичуринск, Рязанской обл. 391160"]
[]
[null,null,null,null,null,"Руководитель"]
[null,null,null,null,"Фамилия, имя, отчество","Тимофеев Павел Вячеславович"]
[null,null,null,null,"(код) номер телефона","(49141)4-18-21"]
[]
[null,null,null,null,null,"Главный бухгалтер"]
[null,null,null,null,"Фамилия, имя, отчество","Левушкина Елена Валентиновна"]
[null,null,null,null,"(код) номер телефона","(49141)4-22-26"]
[]
[null,null,null,null,null,"Должностное лицо, ответственное за составление формы"]
[null,null,null,null,"Фамилия, имя, отчество","Яшунина Татьяна Николаевна"]
[null,null,null,null,"Должность","ведущий экономист по планированию"]
[null,null,null,null,"(код) номер телефона","8(49141)45-108"]
[null,null,null,null,"e-mail","Yashunina.Tatyana@rgr.ogk2.ru"]

{"sheet":"Список МО","index":4,"n_rows":16,"n_cols":8,"rows_kept":16,"cut":false,"hidden":false,"merged":[[13,3,14,3],[13,4,14,4],[3,3,3,7],[4,3,4,7],[6,5,6,7],[7,5,7,7],[8,5,8,7]]}
[]
[]
[]
[null,null,null,"Дифференциация тарифа"]
[null,null,null,"ПУБЛИЧНОЕ АКЦИОНЕРНОЕ ОБЩЕСТВО \"ВТОРАЯ ГЕНЕРИРУЮЩАЯ КОМПАНИЯ ОПТОВОГО РЫНКА ЭЛЕКТРОЭНЕРГИИ\""]
[]
[null,null,null,null,null,"Система теплоснабжения"]
[null,null,null,null,"Условный порядковый номер",1]
[null,null,null,null,"Описание","1"]
[]
[null,null,null,"№ п/п","Муниципальный район","№ п/п","Муниципальное образование","ОКТМО"]
[null,null,null,"1","2","3","4","5"]
[null,null,null,0,null,0]
[null,null,"О",1,"Пронский муниципальный район",1,"Новомичуринское","61625114"]
[null,null,null,null,null,null,"Добавить МО"]
[null,null,null,null,"Добавить МР"]

{"sheet":"Показатели (факт)","index":5,"n_rows":84,"n_cols":8,"rows_kept":84,"cut":false,"hidden":false,"merged":[[83,4,83,6],[4,3,4,6],[5,3,5,6],[17,0,21,0],[22,0,26,0],[27,0,31,0]]}
[]
[]
[]
[]
[null,null,null,"Информация об основных показателях финансово-хозяйственной деятельности регулируемых организаций, включая структуру основных производственных затрат\n(в части регулируемой деятельности) *"]
[null,null,null,"ПУБЛИЧНОЕ АКЦИОНЕРНОЕ ОБЩЕСТВО \"ВТОРАЯ ГЕНЕРИРУЮЩАЯ КОМПАНИЯ ОПТОВОГО РЫНКА ЭЛЕКТРОЭНЕРГИИ\""]
[]
[null,null,null,"№ п/п","Информация, подлежащая раскрытию","Единица измерения","Значение"]
[null,null,null,"1","2","3","4"]
[null,null,null,"1","Выручка от регулируемой деятельности, в том числе по видам деятельности:","тыс руб",{"$f":"SUM(G11:G13)","v":208906.12578999999}]
[null,null,null,"1.0"]
[null,null,"О","1.1","Выручка по теплоэнергии","тыс руб",208906.12578999999]
[null,null,null,null,"Добавить вид деятельности"]
[null,null,null,"2","Себестоимость производимых товаров (оказываемых услуг) по регулируемому виду деятельности, включая: ","тыс руб",{"$f":"SUM(G15:G16)+G34+SUM(G37:G45)+G48+G51+G53","v":353034.87118519418}]
[null,null,null,"2.1","Расходы на покупаемую тепловую энергию (мощность), теплоноситель","тыс руб",0]
[null,null,null,"2.2","Расходы на топливо","тыс руб",{"$f":"SUMIF(flagSum_List02_2,\"p\",G17:G33)","v":174278.84721000004}]
["2.2.0",null,null,{"$f":"A17","v":"2.2.0"}]
["2.2.1",null,"О",{"$f":"A18","v":"2.2.1"},"уголь бурый","x",{"$f":"G19*G20+G21","v":149368.86688836847},"p"]
[null,null,null,{"$f":"A18&\".1\"","v":"2.2.1.1"},"Объем","тонны",72079.749358484944]
[null,null,null,{"$f":"A18&\".2\"","v":"2.2.1.2"},"Стоимость за единицу объема","тыс руб",0.48320954281769102]
[null,null,null,{"$f":"A18&\".3\"","v":"2.2.1.3"},"Стоимость доставки","тыс руб",114539.24415444121]
[null,null,null,{"$f":"A18&\".4\"","v":"2.2.1.4"},"Способ приобретения","x","торги/аукционы"]
["2.2.2",null,"О",{"$f":"A23","v":"2.2.2"},"газ природный по регулируемой цене","x",{"$f":"G24*G25+G26","v":24897.761357083895},"p"]
[null,null,null,{"$f":"A23&\".1\"","v":"2.2.2.1"},"Объем","тыс м3",4829.1481236890168]
[null,null,null,{"$f":"A23&\".2\"","v":"2.2.2.2"},"Стоимость за единицу объема","тыс руб",4.4968336225872001]
[null,null,null,{"$f":"A23&\".3\"","v":"2.2.2.3"},"Стоимость доставки","тыс руб",3181.8857060252326]
[null,null,null,{"$f":"A23&\".4\"","v":"2.2.2.4"},"Способ приобретения","x","прямые договора без торгов"]
["2.2.3",null,"О",{"$f":"A28","v":"2.2.3"},"мазут","x",{"$f":"G29*G30+G31","v":12.218964547670208},"p"]
[null,null,null,{"$f":"A28&\".1\"","v":"2.2.3.1"},"Объем","тонны",1.5786763103682464]
[null,null,null,{"$f":"A28&\".2\"","v":"2.2.3.2"},"Стоимость за единицу объема","тыс руб",7.2924062745098004]
[null,null,null,{"$f":"A28&\".3\"","v":"2.2.3.3"},"Стоимость доставки","тыс руб",0.70661551652082699]
[null,null,null,{"$f":"A28&\".4\"","v":"2.2.3.4"},"Способ приобретения","x","прямые договора без торгов"]
[null,null,null,null,"Добавить вид топлива"]
[null,null,null,"2.3","Расходы на покупаемую электрическую энергию (мощность), используемую в технологическом процессе","тыс руб",407.29482000000002]
[null,null,null,"2.3.1","Средневзвешенная стоимость 1 кВт.ч (с учетом мощности)","руб",4.6559968211983511]
[null,null,null,"2.3.2","Объем приобретенной электрической энергии","тыс кВт.ч",{"$f":"G34/G35","v":87.477469517509533}]
[null,null,null,"2.4","Расходы на приобретение холодной воды, используемой в технологическом процессе","тыс руб",0]
[null,null,null,"2.5","Расходы на хим.реагенты, используемые в технологическом процессе","тыс руб",0]
[null,null,null,"2.6","Расходы на оплату труда основного производственного персонала","тыс руб",18687.09264999998]
[null,null,null,"2.7","Отчисления на социальные нужды основного производственного персонала","тыс руб",5770.0206599999919]
[null,null,null,"2.8","Расходы на оплату труда административно-управленческого персонала","тыс руб",0]
[null,null,null,"2.9","Отчисления на социальные нужды административно-управленческого персонала","тыс руб",0]
[null,null,null,"2.10","Расходы на амортизацию основных производственных средств","тыс руб",30746.741339999939]
[null,null,null,"2.11","Расходы на аренду имущества, используемого для осуществления регулируемого вида деятельности","тыс руб",1163.8528699999988]
[null,null,null,"2.12","Общепроизводственные расходы, в том числе отнесенные к ним:","тыс руб",{"$f":"G46+6492.12993+1886.52415+1888.43542","v":76899.806949999926}]
[null,null,null,"2.12.1","Расходы на текущий ремонт","тыс руб",66632.717449999938]
[null,null,null,"2.12.2","Расходы на капитальный ремонт","тыс руб",0]
[null,null,null,"2.13","Общехозяйственные расходы, в том числе отнесенные к ним:","тыс руб",{"$f":"9962.42746999998+288.93099+6288.08014999999+173.44193+1654.63494","v":18367.515479999973}]
[null,null,null,"2.13.1","Расходы на текущий ремонт","тыс руб",0]
[null,null,null,"2.13.2","Расходы на капитальный ремонт","тыс руб",0]
[null,null,null,"2.14","Расходы на капитальный и текущий ремонт основных производственных средств, в том числе:","тыс руб",0]
[null,null,null,"2.14.1","Информация об объемах товаров и услуг, их стоимости и способах приобретения у тех организаций, сумма оплаты услуг которых превышает 20 процентов суммы расходов по указанной статье расходов","x","отсутствует"]
[null,null,null,"2.15","Прочие расходы, которые подлежат отнесению на регулируемые виды деятельности в соответствии с законодательством РФ","тыс руб",{"$f":"SUM(G54:G56)","v":26713.699205194334}]
[null,null,null,"2.15.0"]
[null,null,"О","2.15.1","расходы из прибыли","тыс руб",26713.699205194334]
[null,null,null,null,"Добавить прочие расходы"]
[null,null,null,"3","Валовая прибыль (убытки) от реализации товаров и оказания услуг по регулируемому виду деятельности","тыс руб",{"$f":"List02_p1-List02_p3","v":-144128.74539519419}]
[null,null,null,"4","Чистая прибыль, полученная от регулируемого вида деятельности, в том числе:","тыс руб",0]
[null,null,null,"4.1","Размер расходования чистой прибыли на финансирование мероприятий, предусмотренных инвестиционной программой","тыс руб",0]
[null,null,null,"5","Сведения об изменении стоимости основных фондов, в том числе за счет их ввода в эксплуатацию (вывода из эксплуатации), а также стоимости их переоценки","тыс руб",0]
[null,null,null,"5.1","За счет ввода (вывода) из эксплуатации","тыс руб",0]
[null,null,null,"6","Стоимость переоценки основных фондов","тыс руб",0]
[null,null,null,"7","Годовая бухгалтерская отчетность, включая бухгалтерский баланс и приложения к нему","x","http://www.ogk2.ru/rus/si/finances/buhuch/"]
[null,null,null,"8","Установленная тепловая мощность объектов основных фондов, используемых для осуществления регулируемых видов деятельности, в том числе по каждому источнику тепловой энергии:","Гкал/ч",213.25]
[null,null,null,"8.0"]
[null,null,null,null,"Добавить источник тепловой энергии"]
[null,null,null,"9","Тепловая нагрузка по договорам, заключенным в рамках осуществления регулируемых видов деятельности","Гкал/ч",{"$f":"G70/8448*1000","v":17.562361458333331}]
[null,null,null,"10","Объем вырабатываемой регулируемой организацией тепловой энергии в рамках осуществления регулируемых видов деятельности","тыс Гкал",237.34370799999996]
[null,null,null,"11","Объем приобретаемой регулируемой организацией тепловой энергии в рамках осуществления регулируемых видов деятельности","тыс Гкал",0]
[null,null,null,"12","Объем тепловой энергии, отпускаемой потребителям по договорам, заключенным в рамках осуществления регулируемых видов деятельности, в том числе:","тыс Гкал",{"$f":"SUM(G71:G72)","v":148.36682959999999}]
[null,null,null,"12.1","Определенном по приборам учета","тыс Гкал",117.1483016]
[null,null,null,"12.2","Определенном расчетным путем (нормативам потребления коммунальных услуг)","тыс Гкал",31.218527999999999]
[null,null,null,"13","Нормативы технологических потерь при передаче тепловой энергии, теплоносителя по тепловым сетям, утвержденные уполномоченным органом","Ккал/ч.мес",{"$f":"48400/8448*1000","v":5729.166666666667}]
[null,null,null,"14","Фактический объем потерь при передаче тепловой энергии","тыс Гкал",72.698577]
[null,null,null,"15","Среднесписочная численность основного производственного персонала"," чел",30]
[null,null,null,"16","Среднесписочная численность административно-управленческого персонала"," чел",2]
[null,null,null,"17","Удельный расход условного топлива на единицу тепловой энергии, отпускаемой в тепловую сеть, в том числе с разбивкой по источникам тепловой энергии, используемым для осуществления регулируемых видов деятельности","кг усл. топл/Гкал",188.80090491996586]
[null,null,null,"17.0"]
[null,null,null,null,"Добавить источник тепловой энергии"]
[null,null,null,"18","Удельный расход электрической энергии на производство (передачу) тепловой энергии на единицу тепловой энергии, отпускаемой потребителям по договорам, заключенным в рамках осуществления регулируемой деятельности","тыс кВт.ч/Гкал",36.703922229107512]
[null,null,null,"19","Удельный расход холодной воды на производство (передачу) тепловой энергии на единицу тепловой энергии, отпускаемой потребителям по договорам, заключенным в рамках осуществления регулируемой деятельности","м3/Гкал",{"$f":"941457/G68/1000","v":3.9666398066048592}]
[null,null,null,"20","Комментарии","x","0"]
[]
[null,null,null,"*","Раскрывается не позднее 30 дней со дня сдачи годового бухгалтерского баланса в налоговые органы."]

{"sheet":"Показатели (2)","index":6,"n_rows":14,"n_cols":16,"rows_kept":14,"cut":false,"hidden":true,"merged":[[9,4,9,13],[4,3,4,8],[5,3,5,8]]}
[]
[]
[]
[]
[null,null,null,"Информация об объемах товаров и услуг, их стоимости и способах приобретения *"]
[null,null,null,"ПУБЛИЧНОЕ АКЦИОНЕРНОЕ ОБЩЕСТВО \"ВТОРАЯ ГЕНЕРИРУЮЩАЯ КОМПАНИЯ ОПТОВОГО РЫНКА ЭЛЕКТРОЭНЕРГИИ\""]
[]
[null,null,null,"№ п/п","Наименование поставщика",null,"№ п/п","Способ приобретения","Реквизиты договора",null,"№ п/п","Наименование товара/услуги","Объем приобретенных товаров, услуг","Единица измерения объема","Стоимость, тыс.руб.","Доля расходов, % (от суммы расходов по указанной статье)"]
[null,null,null,"1","2",null,"3","4","5",null,"6","7","8","9","10","11"]
[null,null,null,null,"Расходы на ремонт (текущий и капитальный) основных производственных средств итого. Из них товары и услуги, приобретенные у организаций, сумма оплаты услуг которых превышает 20% суммы расходов по статье",null,null,null,null,null,null,null,null,null,{"$f":"List02_costs_OPS","v":0}]
[null,null,null,"0"]
[null,null,null,null,"Добавить поставщика"]
[]
[null,null,null,"*","Раскрывается не позднее 30 дней со дня сдачи годового бухгалтерского баланса в налоговые органы."]

{"sheet":"Потр. характеристики","index":7,"n_rows":18,"n_cols":7,"rows_kept":18,"cut":false,"hidden":false,"merged":[[4,3,4,6],[5,3,5,6],[16,4,16,6]]}
[]
[]
[]
[]
[null,null,null,"Информация об основных потребительских характеристиках регулируемых товаров и услуг *"]
[null,null,null,"ПУБЛИЧНОЕ АКЦИОНЕРНОЕ ОБЩЕСТВО \"ВТОРАЯ ГЕНЕРИРУЮЩАЯ КОМПАНИЯ ОПТОВОГО РЫНКА ЭЛЕКТРОЭНЕРГИИ\""]
[]
[null,null,null,"№ п/п","Информация, подлежащая раскрытию","Значение","Ссылки на документы"]
[null,null,null,"1","2","3","4"]
[null,null,null,1,"Количество аварий на тепловых сетях (единиц на км) **"]
[null,null,null,"2","Количество аварий на источниках тепловой энергии (единиц на источник)**"]
[null,null,null,"3","Показатели надежности и качества, установленные в соответствии с законодательством РФ"]
[null,null,null,"4","Доля числа исполненных в срок договоров о подключении (технологическом присоединении), %"]
[null,null,null,"5","Средняя продолжительность рассмотрения заявок на подключение (технологическое присоединение), дней"]
[null,null,null,"6","Комментарии"]
[]
[null,null,null,"*","Раскрывается не позднее 30 дней со дня сдачи годового бухгалтерского баланса в налоговые органы."]
[null,null,null,"**","Учитывать любое нарушение системы."]

{"sheet":"Инвестиции","index":8,"n_rows":97,"n_cols":12,"rows_kept":97,"cut":false,"hidden":false,"merged":[[4,4,4,7],[5,4,5,7],[21,0,23,0],[89,0,93,0],[79,0,83,0],[84,0,88,0],[18,0,20,0],[74,0,76,0]]}
[]
[]
[]
[]
[null,null,null,null,"Информация об инвестиционных программах *"]
[null,null,null,null,"ПУБЛИЧНОЕ АКЦИОНЕРНОЕ ОБЩЕСТВО \"ВТОРАЯ ГЕНЕРИРУЮЩАЯ КОМПАНИЯ ОПТОВОГО РЫНКА ЭЛЕКТРОЭНЕРГИИ\""]
[]
[null,null,null,null,null,null,null,null,null,"О","О"]
[null,null,null,null,"№ п/п","Наименование показателя","Единица измерения","Значение",{"$f":"\"Мероприятие \" & I10-4","v":"Мероприятие 0"},{"$f":"\"Мероприятие \" & J10-4","v":"Мероприятие 1"},{"$f":"\"Мероприятие \" & K10-4","v":"Мероприятие 2"},"Добавить мероприятие"]
[null,null,null,null,"1","2","3","4","4","5","6"]
[null,null,null,null,1,"Наименование инвестиционной программы (мероприятия)","x","ИПР филиала ПАО \"ОГК-2\" Рязанская ГРЭС",null,"Техническое перевооружение системы газопотребления блока №1","Техническое перевооружение пусковой котельной с установкой паровых котлов"]
[null,null,null,null,2,"Дата утверждения инвестиционной программы","x","27.03.2017","x","x","x"]
[null,null,null,null,"3","Цели инвестиционной программы","x","уменьшение издержек на производство","x","x","x"]
[null,null,null,null,"4","Наименование органа исполнительной власти субъекта РФ, утвердившего инвестиционную программу","x","ИПР утверждена в составе БП Общества ПАО \"ОГК-2\"","x","x","x"]
[null,null,null,null,"5","Наименование органа местного самоуправления, согласовавшего инвестиционную программу","x","ИПР утверждена в составе БП Общества ПАО \"ОГК-2\"","x","x","x"]
[null,null,null,null,"6","Срок начала реализации инвестиционной программы (мероприятия)","x","01.01.2017",null,"01.07.2015","01.01.2016"]
[null,null,null,null,"7","Срок окончания реализации инвестиционной программы (мероприятия)","x","31.12.2017",null,"31.10.2018","31.12.2017"]
[null,null,null,null,"8","Потребности в финансовых средствах, необходимых для реализации инвестиционной программы на год, в том числе по источникам финансирования","тыс руб",{"$f":"SUM(I18:L18)","v":30746.74},{"$f":"SUMIF(List06_flag_year,\"y\",I19:I25)","v":0},{"$f":"SUMIF(List06_flag_year,\"y\",J19:J25)","v":6641.72},{"$f":"SUMIF(List06_flag_year,\"y\",K19:K25)","v":24105.02}]
["8.0",null,null,null,{"$f":"A19","v":"8.0"},null,"тыс руб",{"$f":"SUM(H20:H21)","v":0},{"$f":"SUM(I20:I21)","v":0},{"$f":"SUM(J20:J21)","v":0},{"$f":"SUM(K20:K21)","v":0},"y"]
[null,1,null,null,{"$f":"A19&\".\"&B20","v":"8.0.1"},null,"тыс руб",{"$f":"SUM(I20:L20)","v":0}]
[null,null,null,null,null,"Добавить источники"]
["8.1",null,"О",null,{"$f":"A22","v":"8.1"},2017,"тыс руб",{"$f":"SUM(H23:H24)","v":30746.74},{"$f":"SUM(I23:I24)","v":0},{"$f":"SUM(J23:J24)","v":6641.72},{"$f":"SUM(K23:K24)","v":24105.02},"y"]
[null,1,null,null,{"$f":"A22&\".\"&B23","v":"8.1.1"},"амортизация","тыс руб",{"$f":"SUM(I23:L23)","v":30746.74},null,6641.72,24105.02]
[null,null,null,null,null,"Добавить источники"]
[null,null,null,null,null,"Добавить год"]
[null,null,null,null,"9","Целевые показатели инвестиционной программы",null,"x","x","x","x"]
[null,null,null,null,"9.1","Срок окупаемости","лет","x","x","x","x"]
[null,null,null,null,"9.1.1","Факт","лет",0,null,0,0]
[null,null,null,null,"9.1.2","План","лет",0,null,0,0]
[null,null,null,null,"9.2","Перебои в снабжении потребителей","часов на потребителя","x","x","x","x"]
[null,null,null,null,"9.2.1","Факт","часов на потребителя",0,null,0,0]
[null,null,null,null,"9.2.2","План","часов на потребителя",0,null,0,0]
[null,null,null,null,"9.3","Продолжительность (бесперебойность) поставки товаров и услуг","час/день","x","x","x","x"]
[null,null,null,null,"9.3.1","Факт","час/день",0,null,0,0]
[null,null,null,null,"9.3.2","План","час/день",0,null,0,0]
[null,null,null,null,"9.4","Уровень потерь и неучтенного потребления","%","x","x","x","x"]
[null,null,null,null,"9.4.1","Факт","%",0,null,0,0]
[null,null,null,null,"9.4.2","План","%",0,null,0,0]
[null,null,null,null,"9.5","Коэффициент потерь","Гкал/км","x","x","x","x"]
[null,null,null,null,"9.5.1","Факт","Гкал/км",0,null,0,0]
[null,null,null,null,"9.5.2","План","Гкал/км",0,null,0,0]
[null,null,null,null,"9.6","Износ систем коммунальной инфраструктуры","%","x","x","x","x"]
[null,null,null,null,"9.6.1","Факт","%",0,null,0,0]
[null,null,null,null,"9.6.2","План","%",0,null,0,0]
[null,null,null,null,"9.7","Износ оборудования производства (котлы)","%","x","x","x","x"]
[null,null,null,null,"9.7.1","Факт","%",0,null,0,0]
[null,null,null,null,"9.7.2","План","%",0,null,0,0]
[null,null,null,null,"9.8","Износ оборудования передачи тепловой энергии (сети)","%","x","x","x","x"]
[null,null,null,null,"9.8.1","Факт","%",0,null,0,0]
[null,null,null,null,"9.8.2","План","%",0,null,0,0]
[null,null,null,null,"9.9","Удельный вес сетей, нуждающихся в замене","%","x","x","x","x"]
[null,null,null,null,"9.9.1","Факт","%",0,null,0,0]
[null,null,null,null,"9.9.2","План","%",0,null,0,0]
[null,null,null,null,"9.10","Обеспеченность потребления товаров и услуг приборами учета","%","x","x","x","x"]
[null,null,null,null,"9.10.1","Факт","%",0,null,0,0]
[null,null,null,null,"9.10.2","План","%",0,null,0,0]
[null,null,null,null,"9.11","Расход топлива на 1 Гкал","т усл.топл/Гкал","x","x","x","x"]
[null,null,null,null,"9.11.1","Факт","т усл.топл/Гкал",0,null,0,0]
[null,null,null,null,"9.11.2","План","т усл.топл/Гкал",0,null,0,0]
[null,null,null,null,"9.12","Расход электроэнергии на выработку 1 Гкал","кВт.ч/Гкал","x","x","x","x"]
[null,null,null,null,"9.12.1","Факт","кВт.ч/Гкал",0,null,0,0]
[null,null,null,null,"9.12.2","План","кВт.ч/Гкал",0,null,0,0]
[null,null,null,null,"9.13","Расход электроэнергии на передачу 1 Гкал","кВт.ч/Гкал","x","x","x","x"]
[null,null,null,null,"9.13.1","Факт","кВт.ч/Гкал",0,null,0,0]
[null,null,null,null,"9.13.2","План","кВт.ч/Гкал",0,null,0,0]
[null,null,null,null,"9.14","Количество аварий (с учетом котельных)","ед","x","x","x","x"]
[null,null,null,null,"9.14.1","Факт","ед",0,null,0,0]
[null,null,null,null,"9.14.2","План","ед",0,null,0,0]
[null,null,null,null,"9.15","Количество аварий на 1 км тепловых сетей","ед","x","x","x","x"]
[null,null,null,null,"9.15.1","Факт","ед",0,null,0,0]
[null,null,null,null,"9.15.2","План","ед",0,null,0,0]
[null,null,null,null,"9.16","Производительность труда на 1 человека","тыс руб/чел","x","x","x","x"]
[null,null,null,null,"9.16.1","Факт","тыс руб/чел",0,null,0,0]
[null,null,null,null,"9.16.2","План","тыс руб/чел",0,null,0,0]
["9.16",null,null,null,{"$f":"A75","v":"9.16"},null,null,"x","x","x","x"]
[null,null,null,null,{"$f":"A75&\".1\"","v":"9.16.1"},"Факт",{"$f":"IF(G75=\"\",\"x\",G75)","v":"x"}]
[null,null,null,null,{"$f":"A75&\".2\"","v":"9.16.2"},"План",{"$f":"IF(G75=\"\",\"x\",G75)","v":"x"}]
[null,null,null,null,null,"Добавить показатель"]
[null,null,null,null,"10","Использование инвестиционных средств за отчетный год","тыс руб","x","x","x","x"]
["10.0",null,null,null,{"$f":"A80","v":"10.0"},"Всего, в том числе по источникам финансирования:","тыс руб",{"$f":"SUM(I80:L80)","v":63424.854999999996},{"$f":"SUM(I81:I84)","v":0},{"$f":"SUM(J81:J84)","v":7837.23},{"$f":"SUM(K81:K84)","v":55587.625}]
[null,null,null,null,{"$f":"A80&\".1\"","v":"10.0.1"},"I квартал","тыс руб",{"$f":"SUM(I81:L81)","v":21394.68},{"$f":"SUMIF($F$85:$F$95,$F81,I$85:I$95)","v":0},3562.36,17832.32]
[null,null,null,null,{"$f":"A80&\".2\"","v":"10.0.2"},"II квартал","тыс руб",{"$f":"SUM(I82:L82)","v":26306.535},0,175.89,26130.645]
[null,null,null,null,{"$f":"A80&\".3\"","v":"10.0.3"},"III квартал","тыс руб",{"$f":"SUM(I83:L83)","v":9905.19},0,72.86,9832.33]
[null,null,null,null,{"$f":"A80&\".4\"","v":"10.0.4"},"IV квартал","тыс руб",{"$f":"SUM(I84:L84)","v":5818.45},0,4026.12,1792.33]
["10.0",null,null,null,{"$f":"A85","v":"10.0"},null,"тыс руб",{"$f":"SUM(H86:H89)","v":0},{"$f":"SUM(I86:I89)","v":0},{"$f":"SUM(J86:J89)","v":0},{"$f":"SUM(K86:K89)","v":0}]
[null,null,null,null,{"$f":"A85&\".1\"","v":"10.0.1"},"I квартал","тыс руб",{"$f":"SUM(I86:L86)","v":0}]
[null,null,null,null,{"$f":"A85&\".2\"","v":"10.0.2"},"II квартал","тыс руб",{"$f":"SUM(I87:L87)","v":0}]
[null,null,null,null,{"$f":"A85&\".3\"","v":"10.0.3"},"III квартал","тыс руб",{"$f":"SUM(I88:L88)","v":0}]
[null,null,null,null,{"$f":"A85&\".4\"","v":"10.0.4"},"IV квартал","тыс руб",{"$f":"SUM(I89:L89)","v":0}]
["10.1",null,null,"О",{"$f":"A90","v":"10.1"},"амортизация","тыс руб",{"$f":"SUM(H91:H94)","v":63424.854999999996},{"$f":"SUM(I91:I94)","v":0},{"$f":"SUM(J91:J94)","v":7837.23},{"$f":"SUM(K91:K94)","v":55587.625}]
[null,null,null,null,{"$f":"A90&\".1\"","v":"10.1.1"},"I квартал","тыс руб",{"$f":"SUM(I91:L91)","v":21394.68},null,3562.36,17832.32]
[null,null,null,null,{"$f":"A90&\".2\"","v":"10.1.2"},"II квартал","тыс руб",{"$f":"SUM(I92:L92)","v":26306.535},null,175.89,26130.645]
[null,null,null,null,{"$f":"A90&\".3\"","v":"10.1.3"},"III квартал","тыс руб",{"$f":"SUM(I93:L93)","v":9905.19},null,72.86,9832.33]
[null,null,null,null,{"$f":"A90&\".4\"","v":"10.1.4"},"IV квартал","тыс руб",{"$f":"SUM(I94:L94)","v":5818.45},null,4026.12,1792.33]
[null,null,null,null,null,"Добавить источники"]
[]
[null,null,null,null,"*","Раскрывается не позднее 30 дней со дня сдачи годового бухгалтерского баланса в налоговые органы."]

{"sheet":"Инвестиции исправления","index":9,"n_rows":13,"n_cols":6,"rows_kept":13,"cut":false,"hidden":false,"merged":[[4,3,4,5],[5,3,5,5],[12,4,12,5]]}
[]
[]
[]
[]
[null,null,null,"Внесение изменений в инвестиционную программу *"]
[null,null,null,"ПУБЛИЧНОЕ АКЦИОНЕРНОЕ ОБЩЕСТВО \"ВТОРАЯ ГЕНЕРИРУЮЩАЯ КОМПАНИЯ ОПТОВОГО РЫНКА ЭЛЕКТРОЭНЕРГИИ\""]
[]
[null,null,null,"№ п/п","Дата внесения изменений","Внесенные изменения"]
[null,null,null,"1","2","3"]
[null,null,null,"0"]
[null,null,null,null,"Добавить строку"]
[]
[null,null,null,"*","Раскрывается регулируемой организацией в течение 10 календарных дней со дня принятия органом исполнительной власти субъекта Российской Федерации решения о внесении изменений в инвестиционную программу"]

{"sheet":"Ссылки на публикации","index":10,"n_rows":18,"n_cols":11,"rows_kept":18,"cut":false,"hidden":false,"merged":[[15,0,16,0],[15,4,15,10],[4,3,4,10],[5,3,5,10],[10,0,11,0],[10,4,10,10],[12,0,13,0],[12,4,12,10]]}
[]
[]
[]
[]
[null,null,null,"Ссылки на публикации"]
[null,null,null,"ПУБЛИЧНОЕ АКЦИОНЕРНОЕ ОБЩЕСТВО \"ВТОРАЯ ГЕНЕРИРУЮЩАЯ КОМПАНИЯ ОПТОВОГО РЫНКА ЭЛЕКТРОЭНЕРГИИ\""]
[]
[]
[null,null,null,"№ п/п","Содержание","Наименование источника публикации","Дата размещения информации","Номер печатного издания","Дата печатного издания","Ссылка на PDF копии издания","Адрес страницы официального сайта организации в сети интернет, на которой размещена раскрываемая информация"]
[null,null,null,"1","2","3","4","5","6","7","8"]
["1",null,null,{"$f":"A11","v":"1"},"Информация об основных показателях финансово-хозяйственной деятельности регулируемой организации, включая структуру основных производственных затрат (в части регулируемой деятельности) (п.19 Постановления Правительства Российской Федерации от 05 июля 2013 г. N 570 \"О стандартах раскрытия информации теплоснабжающими, теплосетевыми организациями и органами регулирования\")"]
[null,null,null,{"$f":"A11&\".1\"","v":"1.1"},"Сайт организации в сети Интернет"," ОГК-2","30.03.2018","x","x","x","http://www.ogk2.ru/rus/si/infodisclosure/disclosureinstand/"]
["2",null,null,{"$f":"A13","v":"2"},"Информация об основных потребительских характеристиках регулируемых товаров и услуг, оказываемых регулируемой организацией (п.20  Постановления Правительства Российской Федерации от 05 июля 2013 г. N 570 \"О стандартах раскрытия информации теплоснабжающими, теплосетевыми организациями и органами регулирования\")"]
[null,null,null,{"$f":"A13&\".1\"","v":"2.1"},"Сайт организации в сети Интернет"," ОГК-2","30.03.2018","x","x","x","http://www.ogk2.ru/rus/si/infodisclosure/disclosureinstand/"]
[null,null,null,{"$f":"A13&\".2\"","v":"2.2"},"Печатное издание",null,null,null,null,null,"x"]
["3",null,null,{"$f":"A16","v":"3"},"Информация об инвестиционных программах регулируемой организации (п.21 Постановления Правительства Российской Федерации от 05 июля 2013 г. N 570 \"О стандартах раскрытия информации теплоснабжающими, теплосетевыми организациями и органами регулирования\")"]
[null,null,null,{"$f":"A16&\".1\"","v":"3.1"},"Сайт организации в сети Интернет"," ОГК-2","30.03.2018","x","x","x","http://www.ogk2.ru/rus/si/infodisclosure/disclosureinstand/"]
[null,null,null,null,"Добавить"]

{"sheet":"Комментарии","index":11,"n_rows":13,"n_cols":5,"rows_kept":13,"cut":false,"hidden":false,"merged":[[6,3,6,4],[7,3,7,4]]}
[]
[]
[]
[]
[]
[]
[null,null,null,"Комментарии"]
[null,null,null,"ПУБЛИЧНОЕ АКЦИОНЕРНОЕ ОБЩЕСТВО \"ВТОРАЯ ГЕНЕРИРУЮЩАЯ КОМПАНИЯ ОПТОВОГО РЫНКА ЭЛЕКТРОЭНЕРГИИ\""]
[]
[null,null,null,"№ п/п","Комментарий"]
[null,null,null,"1","2"]
[null,null,null,0]
[null,null,null,null,"Добавить"]

{"sheet":"Проверка","index":12,"n_rows":4,"n_cols":5,"rows_kept":4,"cut":false,"hidden":false,"merged":[[1,1,1,4]]}
[]
[null,"Результат проверки"]
[]
[null,"Ссылка1","Ссылка2","Причина","Статус"]

{"sheet":"AllSheetsInThisWorkbook","index":13,"n_rows":30,"n_cols":2,"rows_kept":30,"cut":false,"hidden":true,"merged":[]}
["Расчетные листы","Скрытые листы"]
["Инструкция","AllSheetsInThisWorkbook"]
["Лог обновления","TEHSHEET"]
["Титульный","et_union_hor"]
["Список МО","et_union_vert"]
["Показатели (факт)","modInfo"]
["Показатели (2)","modRegion"]
["Потр. характеристики","modReestr"]
["Инвестиции","modfrmSelectData"]
["Инвестиции исправления","modfrmReestr"]
["Ссылки на публикации","modUpdTemplMain"]
["Комментарии","REESTR_ORG"]
["Проверка","modClassifierValidate"]
[null,"modProv"]
[null,"modHyp"]
[null,"modList00"]
[null,"modList01"]
[null,"modList02"]
[null,"modList03"]
[null,"modList04"]
[null,"modList05"]
[null,"modList06"]
[null,"modList07"]
[null,"modfrmDateChoose"]
[null,"modComm"]
[null,"modThisWorkbook"]
[null,"REESTR_MO"]
[null,"modfrmReestrMR"]
[null,"modfrmCheckUpdates"]
[null,"CopyList"]

{"sheet":"TEHSHEET","index":14,"n_rows":85,"n_cols":20,"rows_kept":85,"cut":false,"hidden":true,"merged":[[0,12,0,13],[0,16,0,17]]}
["REGION","Список с видами деятельности",null,"year_list","logical","Месяц\n(MONTH)","Квартал\n(QUARTER)","Месяц\n(kind_of_publication)","Режим налогообложения\n/kind_of_NDS/","Вид деятельности, на которую установлен тариф /kind_of_activity/","Вид услуги, на которую установлен тариф /kind_of_service_WARM/","Номер СЦХВ(СЦВО)\n/SKI_number/","Виды топлива\n/kind_of_fuels/",null,"цель инвестиционной программы /kind_of_purchase_method/","Источники финансирования\n/source_of_funding/","цель инвестиционной программы /objective_of_IPR/",null,null,"Рабочие диапазоны"]
["Алтайский край","kind_of_activity_01",null,2013,"да","январь","I квартал","На официальном сайте организации","общий","kind_of_activity_01","Производство","1","газ природный по регулируемой цене","тыс м3","торги/аукционы","кредиты банков","автоматизация (с уменьшением штата)",false,null,true]
["Амурская область",null,null,2014,"нет","февраль","II квартал","На сайте регулирующего органа","общий с учетом освобождения от уплаты НДС","Комбинированная выработка","Передача","2","газ природный по нерегулируемой цене","тыс м3","прямые договора без торгов","кредиты иностранных банков","уменьшение удельных затрат (повышение КПД)",false]
["Архангельская область",null,null,2015,null,"март","III квартал",null,"специальный (упрощенная система налогообложения, система налогообложения для сельскохозяйственных товаропроизводителей)","Некомбинированная выработка","Сбыт","3","газ сжиженный","кг","прочее","заемные ср-ва др. организаций","уменьшение издержек на производство",true]
["Астраханская область",null,null,2016,"logical_two","апрель","IV квартал",null,null,"Нет производства т/э",null,"4","газовый конденсат","тонны",null,"федеральный бюджет","снижение аварийности",false]
["Белгородская область",null,null,2017,"есть","май",null,null,"НДС для общего режима налогообложения\n/kind_of_NDS_tariff/","Смешанное производство",null,"5","гшз","тонны",null,"бюджет субъекта РФ","прочее",false]
["Брянская область",null,null,null,"отсутствует","июнь",null,null,"тариф указан с НДС для плательщиков НДС",null,null,"6","мазут","тонны",null,"бюджет муниципального образования"]
["Владимирская область",null,null,null,null,"июль",null,null,"тариф указан без НДС для плательщиков НДС","kind_of_activity_02",null,"7","нефть","тонны",null,"ср-ва внебюджетных фондов"]
["Волгоградская область",null,null,null,null,"август",null,null,null,"Комбинированная выработка",null,"8","дизельное топливо","тонны",null,"прибыль, направляемая на инвестиции"]
["Вологодская область",null,null,null,null,"сентябрь",null,null,"НДС для прочих режимов налогообложения\n/kind_of_NDS_tariff_etc/","Некомбинированная выработка",null,"9","уголь бурый","тонны",null,"амортизация"]
["Воронежская область",null,null,null,null,"октябрь",null,null,"тариф для организаций не являющихся плательщиками НДС","Смешанное производство",null,"10","уголь каменный","тонны",null,"инвестиционная надбавка к тарифу"]
["г.Байконур",null,null,null,null,"ноябрь",null,null,null,"Передача",null,"11","торф","тонны",null,"плата за подключение"]
["г. Москва",null,null,null,null,"декабрь",null,null,null,"Сбыт",null,"12","дрова","м3",null,"прочие средства"]
["г.Санкт-Петербург",null,null,null,null,null,null,null,null,null,null,"13","опил","м3"]
["Еврейская автономная область",null,null,null,null,null,null,null,null,"kind_of_activity_03",null,"14","отходы березовые","м3"]
["Забайкальский край",null,null,null,null,null,null,null,null,"Комбинированная выработка",null,"15","отходы осиновые","м3"]
["Ивановская область",null,null,null,null,null,null,null,null,"Некомбинированная выработка",null,"16","печное топливо","тонны"]
["Иркутская область",null,null,null,null,null,null,null,null,"Смешанное производство",null,"17","пилеты","тонны"]
["Кабардино-Балкарская республика",null,null,null,null,null,null,null,null,"Передача",null,"18","смола","тонны"]
["Калининградская область",null,null,null,null,null,null,null,null,"Сбыт",null,"19","щепа","м3"]
["Калужская область",null,null,null,null,null,null,null,null,"Производство (некомбинированная выработка)+сбыт",null,"20","горючий сланец","тонны"]
["Камчатский край",null,null,null,null,null,null,null,null,"Передача+сбыт",null,null,"керосин","тонны"]
["Карачаево-Черкесская республика",null,null,null,null,null,null,null,null,"Производство (комбинированная выработка)+сбыт",null,null,"кислородно-водородная смесь","тыс м3"]
["Кемеровская область",null,null,null,null,null,null,null,null,"Производство (некомбинированная выработка)+передача",null,null,"электроэнергия (НН)","тыс кВт.ч"]
["Кировская область",null,null,null,null,null,null,null,null,"Производство (комбинированная выработка)+передача",null,null,"электроэнергия (СН1)","тыс кВт.ч"]
["Костромская область",null,null,null,null,null,null,null,null,"Производство (комбинированная выработка)+передача+сбыт",null,null,"электроэнергия (СН2)","тыс кВт.ч"]
["Краснодарский край",null,null,null,null,null,null,null,null,"Производство (некомбинированная выработка)+передача+сбыт",null,null,"электроэнергия (ВН)","тыс кВт.ч"]
["Красноярский край",null,null,null,null,null,null,null,null,"Смешанное производство+сбыт",null,null,"мощность","тыс кВт"]
["Курганская область",null,null,null,null,null,null,null,null,"Смешанное производство+передача",null,null,"прочее"]
["Курская область",null,null,null,null,null,null,null,null,"Смешанное производство+передача+сбыт"]
["Ленинградская область"]
["Липецкая область"]
["Магаданская область"]
["Московская область"]
["Мурманская область"]
["Ненецкий автономный округ"]
["Нижегородская область"]
["Новгородская область"]
["Новосибирская область"]
["Омская область","kind_of_activity_02"]
["Оренбургская область"]
["Орловская область"]
["Пензенская область"]
["Пермский край"]
["Приморский край"]
["Псковская область"]
["Республика Адыгея"]
["Республика Алтай"]
["Республика Башкортостан"]
["Республика Бурятия"]
["Республика Дагестан"]
["Республика Ингушетия"]
["Республика Калмыкия"]
["Республика Карелия"]
["Республика Коми"]
["Республика Марий Эл"]
["Республика Мордовия"]
["Республика Саха (Якутия)"]
["Республика Северная Осетия-Алания"]
["Республика Татарстан"]
["Республика Тыва"]
["Республика Хакасия"]
["Ростовская область"]
["Рязанская область"]
["Самарская область"]
["Саратовская область"]
["Сахалинская область"]
["Свердловская область"]
["Смоленская область"]
["Ставропольский край"]
["Тамбовская область"]
["Тверская область"]
["Томская область"]
["Тульская область"]
["Тюменская область"]
["Удмуртская республика"]
["Ульяновская область","kind_of_activity_02"]
["Хабаровский край"]
["Ханты-Мансийский автономный округ","kind_of_activity_02"]
["Челябинская область"]
["Чеченская республика"]
["Чувашская республика"]
["Чукотский автономный округ"]
["Ямало-Ненецкий автономный округ"]
["Ярославская область"]

{"sheet":"et_union_hor","index":15,"n_rows":61,"n_cols":16,"rows_kept":61,"cut":false,"hidden":true,"merged":[[23,0,24,0],[23,4,23,10],[15,4,15,10],[33,0,37,0],[15,0,17,0],[55,8,56,8],[3,4,4,4],[3,3,4,3],[54,3,57,3],[54,4,57,4],[55,6,56,6],[55,7,56,7]]}
[]
["et_List01","et_List01_1"]
[]
[null,null,null,null,null,1]
[null,null,null,null,null,null,"Добавить МО"]
[]
[]
["et_Comm"]
[]
[]
[]
[]
["et_List03"]
[]
[]
["4",null,null,{"$f":"A16","v":"4"}]
[null,null,null,{"$f":"A16&\".1\"","v":"4.1"},"Сайт организации в сети Интернет",null,null,"x","x","x"]
[null,null,null,{"$f":"A16&\".2\"","v":"4.2"},"Печатное издание",null,"",null,null,null,"x"]
[]
[]
[]
["edit_List03_ipr_pub"]
[]
["3",null,null,{"$f":"A24","v":"3"},"Информация об инвестиционных программах регулируемой организации (п.21 Постановления Правительства Российской Федерации от 05 июля 2013 г. N 570 \"О стандартах раскрытия информации теплоснабжающими, теплосетевыми организациями и органами регулирования\")"]
[null,null,null,{"$f":"A24&\".1\"","v":"3.1"},"Сайт организации в сети Интернет",null,null,"x","x","x"]
[]
[]
["et_List02_1"]
[]
[null,null,null,null,null,"тыс руб"]
[]
["et_List02_2"]
[]
[null,null,null,{"$f":"A34","v":0},null,"x",{"$f":"G35*G36+G37","v":0},"p"]
[null,null,null,{"$f":"A34&\".1\"","v":".1"},"Объем"]
[null,null,null,{"$f":"A34&\".2\"","v":".2"},"Стоимость за единицу объема","тыс руб"]
[null,null,null,{"$f":"A34&\".3\"","v":".3"},"Стоимость доставки","тыс руб"]
[null,null,null,{"$f":"A34&\".4\"","v":".4"},"Способ приобретения","x"]
[]
["et_List02_3"]
[]
[null,null,null,null,null,"Гкал/ч"]
[]
["et_List02_4"]
[]
[null,null,null,null,null,"кг усл. топл/Гкал"]
[]
["et_List02_5"]
[]
[null,null,null,null,null,"тыс руб"]
[]
[]
["et_List04_1","et_List04_2","et_List04_3"]
[]
[null,null,null,"1",null,null,null,"Итого по поставщику",null,null,null,null,null,null,{"$f":"SUM(O56:O58)","v":0},{"$f":"nerr(O55/List02_costs_OPS)*100","v":0}]
[null,null,null,null,null,null,"1",null,null,null,"1"]
[null,null,null,null,null,null,null,null,null,null,null,"Добавить товар/услугу"]
[null,null,null,null,null,null,null,"Добавить способ"]
[]
[]
["et_List07_1"]

{"sheet":"et_union_vert","index":16,"n_rows":0,"n_cols":0,"rows_kept":0,"cut":false,"hidden":true,"merged":[]}

{"sheet":"modInfo","index":17,"n_rows":17,"n_cols":2,"rows_kept":17,"cut":false,"hidden":true,"merged":[]}
[null,"Титульный"]
[null,"Для выбора того или иного источника публикации выполните двойной щелчок по синей ячейке напротив соответствующего источника.\nВНИМАНИЕ! Если Вы снимаете галочку с пункта, то будут скрыты и очищены соответствующие строки на листе \"Ссылки на публикации\"!\n\nОпубликование перечисленных в шаблоне показателей на сайте организации в сети Интернет и в печатных изданиях не обязательно, если данный шаблон предоставлен по системе ЕИАС (региональный сегмент)."]
[null,"Обязательное опубликование на официальном сайте органа исполнительной власти субъекта Российской Федерации в области государственного регулирования цен (тарифов), и (или) на официальном сайте органа местного самоуправления поселения или городского округа в случае их наделения в соответствии с законом субъекта Российской Федерации полномочиями по государственному регулированию цен (тарифов) предусмотрено пунктом 3 (а) постановления Правительства N 570 от 05.07.2013"]
[null,"Задайте период регулирования, выбрав даты начала и окончания очередного периода регулирования из календаря (иконка справа от указанной ячейки), либо введите дату непосредственно в ячейку в формате - 'ДД.ММ.ГГГГ'"]
[null,"Шаблон заполняется раздельно по каждому виду тарифа"]
[null,"В зависимости от указанного вида деятельности будут доступны для заполнения поля 'Производство', 'Передача' и 'Сбыт'"]
[null,"Ссылки на публикации"]
[null,"Вводите адрес сайта, не нарушая цвет ячейки /если копируете гиперссылку из браузера, то выполните двойной щелчок по ячейке и только после этого можете вставить скопированный элемент/"]
[null,"Материалы (документы) необходимо загружать с помощью \"ЕИАС Мониторинг\". Ссылка на инструкцию по загрузке материалов (документов) расположена на листе 'Инструкция' в п.'Методология заполнения'.\n\nВвводите ссылку, не нарушая цвет ячейки /если копируете гиперссылку из браузера, то выполните двойной щелчок по ячейке и только после этого можете вставить скопированный элемент/."]
[null,"Если для какого-либо пункта графы 'Наименование источника (сайта или печатного издания)' информация не раскрывалась, то в соответствующем поле укажите - 'не раскрывалась'"]
[null,"Список МО"]
[null,"В случае, если тариф не дифференцируется по системам теплоснабжения, перечислите все муниципальные районы, в которых организация осуществляет услуги по передаче тепловой энергии"]
[null,"В случае, если тариф не дифференцируется по системам теплоснабжения, перечислите все муниципальные образования, в которых организация осуществляет услуги по передаче тепловой энергии"]
[null,"Признак дифференциации тарифа"]
[null,"В случае, если тариф не дифференцируется по системам теплоснабжения, укажите '1'. Введите значение от 1 до 100, чтобы указать очередной условный порядковый номер системы теплоснабжения"]
[null,"Потр. Характеристики"]
[null,"Документы необходимо загружать с помощью \"ЕИАС Мониторинг\". Ссылка на инструкцию по загрузке документов расположена на листе 'Инструкция' в п.'Методология заполнения'.\n\nВвводите ссылку, не нарушая цвет ячейки /если копируете гиперссылку из браузера, то выполните двойной щелчок по ячейке и только после этого можете вставить скопированный элемент/."]

{"sheet":"modRegion","index":18,"n_rows":0,"n_cols":0,"rows_kept":0,"cut":false,"hidden":true,"merged":[]}

{"sheet":"modReestr","index":19,"n_rows":0,"n_cols":0,"rows_kept":0,"cut":false,"hidden":true,"merged":[]}

{"sheet":"modfrmSelectData","index":20,"n_rows":0,"n_cols":0,"rows_kept":0,"cut":false,"hidden":true,"merged":[]}

{"sheet":"modfrmReestr","index":21,"n_rows":0,"n_cols":0,"rows_kept":0,"cut":false,"hidden":true,"merged":[]}

{"sheet":"modUpdTemplMain","index":22,"n_rows":0,"n_cols":0,"rows_kept":0,"cut":false,"hidden":true,"merged":[]}

{"sheet":"REESTR_ORG","index":23,"n_rows":295,"n_cols":12,"rows_kept":295,"cut":false,"hidden":true,"merged":[]}
["№","NSRF","MR_NAME","OKTMO_MR_NAME","MO_NAME","OKTMO_NAME","RST_ORG_ID","ORG_NAME","INN_NAME","KPP_NAME","VDET_NAME"]
[1,"Алтайский край","Город Барнаул","01701000","Город Барнаул","01701000","26650386","АКГУП \"Аптеки Алтая\"","2221019606","222101001","производство (некомбинированная выработка)+передача+сбыт","WARM"]
[2,"Алтайский край","Троицкий муниципальный район","01651000","Троицкий сельсовет","01651457","26649792","АУ МО Троицкий район Алтайского края \"Альтернатива\"","2281005767","228101001","производство (некомбинированная выработка)+передача+сбыт","WARM"]
[3,"Алтайский край","Город Алейск","01703000","Город Алейск","01703000","26354804","В/Ч \"Алейская КЭЧ\"","2201005891","220101001","производство (некомбинированная выработка)+передача+сбыт","WARM"]
[4,"Алтайский край","Город Алейск","01703000","Город Алейск","01703000","26522203","ГУП \"Алейское ДСУ 3\"","2201006430","220101001","производство (некомбинированная выработка)+передача+сбыт","WARM"]
[5,"Алтайский край","Город Барнаул","01701000","Город Барнаул","01701000","26370836","ГУП \"УПТК\"","2202000695","222201001","производство (некомбинированная выработка)+передача+сбыт","WARM"]
[6,"Алтайский край","Шипуновский муниципальный район","01659000","Шипуновский сельсовет","01659495","26520187","ГУП \"Шипуновское ДРСУ\"","2289005977","228901001","производство (некомбинированная выработка)+передача+сбыт","WARM"]
[7,"Алтайский край","Город Барнаул","01701000","Город Барнаул","01701000","26654167","ГУП ДХ \"БДСУ-4\"","2202000688","222101001","производство (некомбинированная выработка)+передача+сбыт","WARM"]
[8,"Алтайский край","Город Камень-на-Оби","01710000","Город Камень-на-Оби","01710000","26654018","ГУП ДХ Алтайского края \"Каменское ДРСУ\"","2247004298","224701001","производство (некомбинированная выработка)+передача+сбыт","WARM"]
[9,"Алтайский край","Город Алейск","01703000","Город Алейск","01703000","26354852","ДХО Алейская ПМК ОАО \"Барнаулводстрой\"","2231002626","220101001","производство (некомбинированная выработка)+передача+сбыт","WARM"]
[10,"Алтайский край","Город Алейск","01703000","Город Алейск","01703000","26809588","ЗАО \"Алейскзернопродукт\" им. С.Н. Старовойтова","2201000766","220101001","производство (некомбинированная выработка)+передача+сбыт","WARM"]
[11,"Алтайский край","Город Белокуриха","01704000","Город Белокуриха","01704000","26774309","ЗАО \"Инновация\"","7731575575","220345001","производство комбинированная выработка","WARM"]
[12,"Алтайский край","Павловский муниципальный район","01630000","Колыванский сельсовет","01630432","26371105","ЗАО \"Колыванское\"","2261002207","226101001","производство (некомбинированная выработка)+передача+сбыт","WARM"]
[13,"Алтайский край","Тальменский муниципальный район","01647000","Ларичихинский сельсовет","01647442","26805260","ЗАО \"Ларичихинский ЛПХ\" Переименована от (ОАО \"Ларичихинский леспромхоз\")","2277002548","227701001","производство (некомбинированная выработка)+передача+сбыт","WARM"]
[14,"Алтайский край","Завьяловский муниципальный район","01611000","Малиновский сельсовет","01611456","27485296","ЗАО \"Малиновское\"","2224136731","224101001","производство (некомбинированная выработка)+передача+сбыт","WARM"]
[15,"Алтайский край","Первомайский муниципальный район","01632000","Зудиловский сельсовет","01632434","26649240","ЗАО \"Санаторий Сосновый бор\"","2263000950","226301001","производство (некомбинированная выработка)+передача+сбыт","WARM"]
[16,"Алтайский край","Город Белокуриха","01704000","Город Белокуриха","01704000","26354806","ЗАО \"Теплоцентраль Белокуриха\"","2203000225","220301001","производство (некомбинированная выработка)+передача+сбыт","WARM"]
[17,"Алтайский край","Город Барнаул","01701000","Город Барнаул","01701000","26354838","ЗАО БМК \"Меланжист Алтая\"","2224063466","222401001","производство (некомбинированная выработка)+передача+сбыт","WARM"]
[18,"Алтайский край","Город Барнаул","01701000","Город Барнаул","01701000","26354843","ЗАО ЗПК \"Барнаульская мельница\"","2225050477","222501001","производство (некомбинированная выработка)+передача+сбыт","WARM"]
[19,"Алтайский край","","","","","26835599","Западно-Сибирская Дирекция по тепловодоснабжению – структурное подразделение Центральной Дирекции по тепловодоснабжению – филиала ОАО «РЖД» (Омский регион. производ. участок, Новосибирский терр-ый участок, Алтайский  терр-ый участок)","7708503727","540745040","производство (некомбинированная выработка)+передача+сбыт","WARM"]
[20,"Алтайский край","Благовещенский муниципальный район","01605000","Леньковский сельсовет","01605436","27831990","ИП \"Маслак Е.М.\"","223500020898","отсутствует","производство (некомбинированная выработка)+передача+сбыт","WARM"]
[21,"Алтайский край","Каменский муниципальный район","01616000","Рыбинский сельсовет","01616482","26370931","ИП Матюшкин В.М.","222406272960","отсутствует","производство (некомбинированная выработка)+передача+сбыт","WARM"]
[22,"Алтайский край","Каменский муниципальный район","01616000","Столбовский сельсовет","01616486","26649050","ИП Михалёв В.Н.","224701045260","отсутствует","производство (некомбинированная выработка)+передача+сбыт","WARM"]
[23,"Алтайский край","Угловский муниципальный район","01653000","Мирненский сельсовет","01653433","27836075","ИП Решетов В.С.","228300654342","отсутствует","производство (некомбинированная выработка)+передача+сбыт","WARM"]
[24,"Алтайский край","Табунский муниципальный район","01646000","Табунский сельсовет","01646466","28424758","ИП Сальников Ю.М.","227600022127","отсутствует","производство (некомбинированная выработка)+передача+сбыт","WARM"]
[25,"Алтайский край","Быстроистокский муниципальный район","01607000","Быстроистокский сельсовет","01607405","26807661","ИП Стремяков В.А.","223700069989","отсутствует","производство (некомбинированная выработка)+передача+сбыт","WARM"]
[26,"Алтайский край","Благовещенский муниципальный район","01605000","Яготинский сельсовет","01605494","27669256","ИП глава Гербер П.П.","223500127390","отсутствует","производство (некомбинированная выработка)+передача+сбыт","WARM"]
[27,"Алтайский край","Угловский муниципальный район","01653000","Озерно-Кузнецовский сельсовет","01653455","28269268","ИП глава К(Ф)Х Березовских С.С.","228394437083","отсутствует","производство (некомбинированная выработка)+передача+сбыт","WARM"]
[28,"Алтайский край","Первомайский муниципальный район","01632000","Зудиловский сельсовет","01632434","27906860","ИП глава КФХ А.Л. Лизов","226300214475","отсутствует","производство (некомбинированная выработка)+передача+сбыт","WARM"]
[29,"Алтайский край","Город Бийск","01705000","Город Бийск","01705000","26652586","КГБОУ СПО \"Бийский лесхоз-техникум\"","2226008460","220401001","производство (некомбинированная выработка)+передача+сбыт","WARM"]
[30,"Алтайский край","Город Барнаул","01701000","Город Барнаул","01701000","26568896","КГСУСО \"Центральный дом интернат для престарелых и инвалидов\"","2225027559","222501001","производство (некомбинированная выработка)+передача+сбыт","WARM"]
[31,"Алтайский край","Угловский муниципальный район","01653000","Тополинский сельсовет","01653480","26521337","КФХ Бадеев Ю.А.","228301230836","отсутствует","производство (некомбинированная выработка)+передача+сбыт","WARM"]
[32,"Алтайский край","Смоленский муниципальный район","01640000","Смоленский сельсовет","01640456","26524207","МБУЗ \"Смоленская ЦРБ\"","2271003070","227101001","производство (некомбинированная выработка)+передача+сбыт","WARM"]
[33,"Алтайский край","Петропавловский муниципальный район","01633000","Петропавловский сельсовет","01633457","26354936","МП \"МОКХ\"","2264000159","226401001","производство (некомбинированная выработка)+передача+сбыт","WARM"]
[34,"Алтайский край","Тальменский муниципальный район","01647000","Новоперуновский сельсовет","01647459","26520291","МУКП \"Новоперуновское\"","2277011454","227701001","производство (некомбинированная выработка)+передача+сбыт","WARM"]
[35,"Алтайский край","Поселок Сибирский (ЗАТО)","01755000","Поселок Сибирский (ЗАТО)","01755000","26354996","МУМКП","2291000743","229101001","производство (некомбинированная выработка)+передача+сбыт","WARM"]
[36,"Алтайский край","Бурлинский муниципальный район","01606000","Бурлинский сельсовет","01606411","26524205","МУП \"БТС\"","2236004183","223601001","производство (некомбинированная выработка)+передача+сбыт","WARM"]
[37,"Алтайский край","Алейский муниципальный район","01601000","Боровской сельсовет","01601417","26568778","МУП \"Боровское\"","2231004912","223101001","производство (некомбинированная выработка)+передача+сбыт","WARM"]
[38,"Алтайский край","Смоленский муниципальный район","01640000","Ануйский сельсовет","01640405","26354955","МУП \"Буревестник\"","2271004933","227101001","производство (некомбинированная выработка)+передача+сбыт","WARM"]
[39,"Алтайский край","Смоленский муниципальный район","01640000","Верх-Обской сельсовет","01640412","26522864","МУП \"Верх-Обское ЖКХ\"","2271005535","227101001","производство (некомбинированная выработка)+передача+сбыт","WARM"]
[40,"Алтайский край","Город Новоалтайск","01713000","Город Новоалтайск","01713000","26370847","МУП \"Водоканал\"","2208001857","220801001","производство (некомбинированная выработка)+передача+сбыт","WARM"]
[41,"Алтайский край","Усть-Пристанский муниципальный район","01655000","Вяткинский сельсовет","01655419","26647961","МУП \"Восток\"","2285005060","228501001","производство (некомбинированная выработка)+передача+сбыт","WARM"]
[42,"Алтайский край","Локтевский муниципальный район","01625000","Гилевский сельсовет","01625417","28056432","МУП \"Гилевский коммунальный участок\"","2256007721","225601001","производство (некомбинированная выработка)+передача+сбыт","WARM"]
[43,"Алтайский край","Рубцовский муниципальный район","01638000","Дальний сельсовет","01638422","26649864","МУП \"Дальний\"","2269009437","226901001","производство (некомбинированная выработка)+передача+сбыт","WARM"]
[44,"Алтайский край","Тальменский муниципальный район","01647000","Среднесибирский сельсовет","01647473","26520281","МУП \"Дом сервис\"","2277011447","227701001","производство (некомбинированная выработка)+передача+сбыт","WARM"]
[45,"Алтайский край","Третьяковский муниципальный район","01650000","Екатерининский сельсовет","01650411","26354975","МУП \"Екатерининское ЖКХ\"","2280004224","228001001","производство (некомбинированная выработка)+передача+сбыт","WARM"]
[46,"Алтайский край","Усть-Пристанский муниципальный район","01655000","Коробейниковский сельсовет","01655440","26759732","МУП \"Заречное\"","2285005052","228501001","производство (некомбинированная выработка)+передача+сбыт","WARM"]
[47,"Алтайский край","Усть-Пристанский муниципальный район","01655000","Усть-Пристанский сельсовет","01655480","26647950","МУП \"Исток\"","2285005045","228501001","производство (некомбинированная выработка)+передача+сбыт","WARM"]
[48,"Алтайский край","Усть-Пристанский муниципальный район","01655000","Усть-Пристанский сельсовет","01655480","28426096","МУП \"Исток+\"","2285005180","228501001","производство (некомбинированная выработка)+передача+сбыт","WARM"]
[49,"Алтайский край","Алейский муниципальный район","01601000","Кабаковский сельсовет","01601430","26568845","МУП \"Источник\"","2231007279","223101001","производство (некомбинированная выработка)+передача+сбыт","WARM"]
[50,"Алтайский край","Родинский муниципальный район","01636000","Зелёнолуговской сельсовет","01636410","26649731","МУП \"Источник\"","2267005204","226701001","производство (некомбинированная выработка)+передача+сбыт","WARM"]
[51,"Алтайский край","Калманский муниципальный район","01615000","Калманский сельсовет","01615427","26801730","МУП \"ККХ\"","2246004560","224601001","производство (некомбинированная выработка)+передача+сбыт","WARM"]
[52,"Алтайский край","Локтевский муниципальный район","01625000","Локтевский сельсовет","01625434","28424050","МУП \"КУ Локоть\"","2256002709","225601001","производство (некомбинированная выработка)+передача+сбыт","WARM"]
[53,"Алтайский край","Локтевский муниципальный район","01625000","Новомихайловский сельсовет","01625459","28424044","МУП \"КУ с. Сов. Путь\"","2256006566","225601001","производство (некомбинированная выработка)+передача+сбыт","WARM"]
[54,"Алтайский край","Усть-Калманский муниципальный район","01654000","Кабановский сельсовет","01654408","26371289","МУП \"Кабановское ЖКХ\"","2284554050","228401001","производство (некомбинированная выработка)+передача+сбыт","WARM"]
[55,"Алтайский край","Город Камень-на-Оби","01710000","Город Камень-на-Оби","01710000","27249954","МУП \"Каменские тепловые сети\"","2207008899","220701001","производство (некомбинированная выработка)+передача+сбыт","WARM"]
[56,"Алтайский край","Родинский муниципальный район","01636000","Каяушинский сельсовет","01636422","26649267","МУП \"Каяушинское\"","2267005099","226701001","производство (некомбинированная выработка)+передача+сбыт","WARM"]
[57,"Алтайский край","Алейский муниципальный район","01601000","Кировский сельсовет","01601438","26568801","МУП \"Кировское\"","2231004670","223101001","производство (некомбинированная выработка)+передача+сбыт","WARM"]
[58,"Алтайский край","Смоленский муниципальный район","01640000","Кировский сельсовет","01640423","26522859","МУП \"Кировское\"","2271005528","227101001","производство (некомбинированная выработка)+передача+сбыт","WARM"]
[59,"Алтайский край","Город Заринск","01706000","Город Заринск","01706000","26653772","МУП \"Коммунальное хозяйство\"","2205010765","220401001","производство (некомбинированная выработка)+передача+сбыт","WARM"]
[60,"Алтайский край","Тюменцевский муниципальный район","01652000","Заводской сельсовет","01652425","26505912","МУП \"Коммунальное хозяйство\"","2282003949","228201001","производство (некомбинированная выработка)+передача+сбыт","WARM"]
[61,"Алтайский край","Тюменцевский муниципальный район","01652000","Тюменцевский сельсовет","01652458","26505910","МУП \"Коммунальное хозяйство\"","2282003963","228201001","производство (некомбинированная выработка)+передача+сбыт","WARM"]
[62,"Алтайский край","Город Алейск","01703000","Город Алейск","01703000","26354803","МУП \"Коммунальщик\"","2201001015","220101001","производство (некомбинированная выработка)+передача+сбыт","WARM"]
[63,"Алтайский край","Косихинский муниципальный район","01618000","Налобихинский сельсовет","01618460","26354890","МУП \"Коммунальщик\"","2249010272","224901001","производство (некомбинированная выработка)+передача+сбыт","WARM"]
[64,"Алтайский край","Тогульский муниципальный район","01648000","Тогульский сельсовет","01648446","26354970","МУП \"Коммунальщик\"","2278002526","227801001","производство (некомбинированная выработка)+передача+сбыт","WARM"]
[65,"Алтайский край","Родинский муниципальный район","01636000","Кочкинский сельсовет","01636428","26354943","МУП \"Кочки\"","2267004698","226701001","производство (некомбинированная выработка)+передача+сбыт","WARM"]
[66,"Алтайский край","Кытмановский муниципальный район","01624000","Кытмановский сельсовет","01624423","26354902","МУП \"Кытмановские тепловые сети\"","2255002720","225501001","производство (некомбинированная выработка)+передача+сбыт","WARM"]
[67,"Алтайский край","Немецкий Национальный муниципальный район","01660000","Подсосновский сельсовет","01660435","27594835","МУП \"МОКХ Подсосновское\"","2259007014","225901001","производство (некомбинированная выработка)+передача+сбыт","WARM"]
[68,"Алтайский край","Немецкий Национальный муниципальный район","01660000","Гальбштадтский сельсовет","01660420","28016978","МУП \"МТК\"","2259007198","225901001","производство (некомбинированная выработка)+передача+сбыт","WARM"]
[69,"Алтайский край","Родинский муниципальный район","01636000","Мирненский сельсовет","01636434","26648968","МУП \"Мирный\"","2267004962","226701001","производство (некомбинированная выработка)+передача+сбыт","WARM"]
[70,"Алтайский край","Бурлинский муниципальный район","01606000","Михайловский сельсовет","01606422","26370911","МУП \"Михайловское жилищно-коммунальное хозяйство\"","2236004017","223601001","производство (некомбинированная выработка)+передача+сбыт","WARM"]
[71,"Алтайский край","Усть-Калманский муниципальный район","01654000","Новобурановский сельсовет","01654422","26371285","МУП \"Новобурановское ЖКХ\"","2284007032","228401001","производство (некомбинированная выработка)+передача+сбыт","WARM"]
[72,"Алтайский край","Усть-Калманский муниципальный район","01654000","Новокалманский сельсовет","01654433","26371284","МУП \"Новокалманское ЖКХ\"","2284006952","228401001","производство (некомбинированная выработка)+передача+сбыт","WARM"]
[73,"Алтайский край","Ключевский муниципальный район","01617000","Новополтавский сельсовет","01617435","26649712","МУП \"Новополтавское коммунальное хозяйство\"","2248005375","224801001","производство (некомбинированная выработка)+передача+сбыт","WARM"]
[74,"Алтайский край","Калманский муниципальный район","01615000","Новоромановский сельсовет","01615457","27253188","МУП \"Новоромановское жилищно-коммунальное хозяйство\"","2246000452","224601001","производство (некомбинированная выработка)+передача+сбыт","WARM"]
[75,"Алтайский край","Тальменский муниципальный район","01647000","Озерский сельсовет","01647466","26520248","МУП \"Озерские ТВС и К\"","2277011415","227701001","производство (некомбинированная выработка)+передача+сбыт","WARM"]
[76,"Алтайский край","Зональный муниципальный район","01629000","Октябрьский сельсовет","01629470","26370970","МУП \"Октябрьское\"","2245003796","224501001","производство (некомбинированная выработка)+передача+сбыт","WARM"]
[77,"Алтайский край","Угловский муниципальный район","01653000","Павловский сельсовет","01653466","26371273","МУП \"Павловка\"","2283004624","228301001","производство (некомбинированная выработка)+передача+сбыт","WARM"]
[78,"Алтайский край","Павловский муниципальный район","01630000","Павловский сельсовет","01630460","27254792","МУП \"Павловские коммунальные сети\"","2261000560","226101001","производство (некомбинированная выработка)+передача+сбыт","WARM"]
[79,"Алтайский край","Егорьевский муниципальный район","01609000","Первомайский сельсовет","01609444","26809888","МУП \"Первомайское\"","2239004061","223901001","производство (некомбинированная выработка)+передача+сбыт","WARM"]
[80,"Алтайский край","Родинский муниципальный район","01636000","Раздольненский сельсовет","01636451","26649725","МУП \"Раздольное\"","2267005148","226701001","производство (некомбинированная выработка)+передача+сбыт","WARM"]
[81,"Алтайский край","Алтайский муниципальный район","01602000","Россошинский сельсовет","01602468","27688087","МУП \"Россошинский коммунальщик\"","2232005884","223201001","производство (некомбинированная выработка)+передача+сбыт","WARM"]
[82,"Алтайский край","Город Рубцовск","01716000","Город Рубцовск","01716000","26628787","МУП \"Рубцовские тепловые сети\"","2209023772","220901001","производство (некомбинированная выработка)+передача+сбыт","WARM"]
[83,"Алтайский край","Город Рубцовск","01716000","Город Рубцовск","01716000","26505250","МУП \"Рубцовский тепловой комплекс\"","2209036348","220901001","производство (некомбинированная выработка)","WARM"]
[84,"Алтайский край","Город Рубцовск","01716000","Город Рубцовск","01716000","26505250","МУП \"Рубцовский тепловой комплекс\"","2209036348","220901001","производство комбинированная выработка","WARM"]
[85,"Алтайский край","Бийский муниципальный район","01604000","Светлоозерский сельсовет","01604480","26354867","МУП \"Светлоозерское\"","2234011876","223401001","производство (некомбинированная выработка)+передача+сбыт","WARM"]
[86,"Алтайский край","Родинский муниципальный район","01636000","Степновский сельсовет","01636468","26371156","МУП \"Сибиряк\"","2267004722","226701001","производство (некомбинированная выработка)+передача+сбыт","WARM"]
[87,"Алтайский край","Смоленский муниципальный район","01640000","Смоленский сельсовет","01640456","26522854","МУП \"Смоленское\"","2271004549","227101001","производство (некомбинированная выработка)+передача+сбыт","WARM"]
[88,"Алтайский край","Егорьевский муниципальный район","01609000","Сростинский сельсовет","01609455","26809838","МУП \"Сростинское\"","2239004047","223901001","производство (некомбинированная выработка)+передача+сбыт","WARM"]
[89,"Алтайский край","Павловский муниципальный район","01630000","Стуковский сельсовет","01630473","28422485","МУП \"Стуковские коммунальные сети\"","2261001997","226101001","производство (некомбинированная выработка)+передача+сбыт","WARM"]
[90,"Алтайский край","Алейский муниципальный район","01601000","Безголосовский сельсовет","01601408","26568834","МУП \"Темп\"","2231004969","223101001","производство (некомбинированная выработка)+передача+сбыт","WARM"]
[91,"Алтайский край","Егорьевский муниципальный район","01609000","Малошелковниковский сельсовет","01609428","26809831","МУП \"Тепло\"","2239004054","223901001","производство (некомбинированная выработка)+передача+сбыт","WARM"]
[92,"Алтайский край","Завьяловский муниципальный район","01611000","Завьяловский сельсовет","01611434","28424771","МУП \"Тепловик\"","2241000226","224101001","производство (некомбинированная выработка)+передача+сбыт","WARM"]
[93,"Алтайский край","Баевский муниципальный район","01603000","Баевский сельсовет","01603407","26354863","МУП \"Тепловые сети Баевского сельсовета\"","2233002170","223301001","производство (некомбинированная выработка)+передача+сбыт","WARM"]
[94,"Алтайский край","Город Славгород","01719000","Город Славгород","01719000","27911927","МУП \"Тепловые сети г. Славгорода\"","2210009204","221001001","производство (некомбинированная выработка)+передача+сбыт","WARM"]
[95,"Алтайский край","Суетский муниципальный район","01641000","Верх-Суетский сельсовет","01641413","26588741","МУП \"Теплосети\"","2275001355","227501001","производство (некомбинированная выработка)+передача+сбыт","WARM"]
[96,"Алтайский край","Залесовский муниципальный район","01612000","Залесовский сельсовет","01612426","28145383","МУП \"Теплоснабжение\"","2242004103","224201001","производство (некомбинированная выработка)+передача+сбыт","WARM"]
[97,"Алтайский край","Алтайский муниципальный район","01602000","Алтайский сельсовет","01602407","26354861","МУП \"Теплоцентраль\"","2232007970","223201001","производство (некомбинированная выработка)+передача+сбыт","WARM"]
[98,"Алтайский край","Романовский муниципальный район","01637000","Романовский сельсовет","01637468","28284214","МУП \"Теплоцентраль\"","2268002728","226801001","производство (некомбинированная выработка)+передача+сбыт","WARM"]
[99,"Алтайский край","Солонешенский муниципальный район","01643000","Тумановский сельсовет","01643481","26354960","МУП \"Тумановское\"","2273320155","227301001","производство (некомбинированная выработка)+передача+сбыт","WARM"]
[100,"Алтайский край","Город Барнаул","01701000","Город Барнаул","01701000","26522876","МУП \"Энергетик\"","2224134685","222401001","производство (некомбинированная выработка)+передача+сбыт","WARM"]
[101,"Алтайский край","Город Яровое","01730000","Город Яровое","01730000","27770434","МУП \"ЯТЭК\"","2210009187","221101001","Передача+Сбыт","WARM"]
[102,"Алтайский край","Город Яровое","01730000","Город Яровое","01730000","27770434","МУП \"ЯТЭК\"","2210009187","221101001","производство комбинированная выработка","WARM"]
[103,"Алтайский край","Целинный муниципальный район","01657000","Марушинский сельсовет","01657434","26522964","МУП ЖКХ \"Марушка\"","2287005636","228701001","производство (некомбинированная выработка)+передача+сбыт","WARM"]
[104,"Алтайский край","Ребрихинский муниципальный район","01635000","Станционно-Ребрихинский сельсовет","01635476","26354940","МУП КХ при Администрации ст. Ребриха","2266003483","226601001","производство (некомбинированная выработка)+передача+сбыт","WARM"]
[105,"Алтайский край","Троицкий муниципальный район","01651000","Троицкий сельсовет","01651457","27551688","МУП МО Троицкий сельсовет Троицкого района Алтайского края \"Тепловые сети\"","2281005904","228101001","производство (некомбинированная выработка)+передача+сбыт","WARM"]
[106,"Алтайский край","Локтевский муниципальный район","01625000","Александровский сельсовет","01625404","26354909","МУП ТВС \"Александровское коммунальное предприятие\"","2256006615","225601001","производство (некомбинированная выработка)+передача+сбыт","WARM"]
[107,"Алтайский край","Косихинский муниципальный район","01618000","Косихинский сельсовет","01618434","26354889","МУП ТС \"Косихинское\"","2249002120","224901001","производство (некомбинированная выработка)+передача+сбыт","WARM"]
[108,"Алтайский край","Рубцовский муниципальный район","01638000","Рубцовский сельсовет","01638462","26379350","МУП ТС \"Тепло\"","2269008465","226001901","производство (некомбинированная выработка)+передача+сбыт","WARM"]
[109,"Алтайский край","Топчихинский муниципальный район","01649000","Топчихинский сельсовет","01649462","26354971","МУП ТС \"Топчихинское\"","2279005181","227901001","производство (некомбинированная выработка)+передача+сбыт","WARM"]
[110,"Алтайский край","Город Новоалтайск","01713000","Город Новоалтайск","01713000","26354819","МУП г. Новоалтайска \"НТС\"","2208002579","220801001","производство (некомбинированная выработка)+передача+сбыт","WARM"]
[111,"Алтайский край","Чарышский муниципальный район","01658000","Маралихинский сельсовет","01658433","26371310","Маралихинский сельсовет","2288000969","228801001","производство (некомбинированная выработка)+передача+сбыт","WARM"]
[112,"Алтайский край","Город Барнаул","01701000","Город Барнаул","01701000","26354839","ОАО \"АЗА\"","2225003220","222501001","производство (некомбинированная выработка)+передача+сбыт","WARM"]
[113,"Алтайский край","Город Барнаул","01701000","Город Барнаул","01701000","26354917","ОАО \"Авиационное предприятие \"Алтай\"","2259001380","222201001","производство (некомбинированная выработка)+передача+сбыт","WARM"]
[114,"Алтайский край","Город Алейск","01703000","Город Алейск","01703000","26354800","ОАО \"Алейский маслосыркомбинат\"","2201000220","220101001","производство (некомбинированная выработка)+передача+сбыт","WARM"]
[115,"Алтайский край","Город Заринск","01706000","Город Заринск","01706000","26354809","ОАО \"Алтай-Кокс\"","2205001753","220250001","Передача","WARM"]
[116,"Алтайский край","Город Заринск","01706000","Город Заринск","01706000","26354809","ОАО \"Алтай-Кокс\"","2205001753","220250001","производство комбинированная выработка","WARM"]
[117,"Алтайский край","Город Новоалтайск","01713000","Город Новоалтайск","01713000","26354817","ОАО \"Алтайвагон\"","2208000010","997850001","производство (некомбинированная выработка)+передача+сбыт","WARM"]
[118,"Алтайский край","Город Барнаул","01701000","Город Барнаул","01701000","26648718","ОАО \"Алтайские коммунальные системы\"","2224081377","222401001","Передача","WARM"]
[119,"Алтайский край","Город Барнаул","01701000","Город Барнаул","01701000","27808247","ОАО \"Барнаульская ТЭЦ-3\"","2224152765","222401001","производство комбинированная выработка","WARM"]
[120,"Алтайский край","Город Барнаул","01701000","Город Барнаул","01701000","27808198","ОАО \"Барнаульская генерация\"","2224152758","222401001","производство комбинированная выработка","WARM"]
[121,"Алтайский край","Город Барнаул","01701000","Город Барнаул","01701000","27808172","ОАО \"Барнаульская теплосетевая компания\"","2224152780","222401001","производство (некомбинированная выработка)+передача+сбыт","WARM"]
[122,"Алтайский край","Город Барнаул","01701000","Город Барнаул","01701000","26354841","ОАО \"Барнаульский дрожжевой завод\"","2225020842","222501001","производство (некомбинированная выработка)+передача+сбыт","WARM"]
[123,"Алтайский край","Город Бийск","01705000","Город Бийск","01705000","26820897","ОАО \"Бийскэнерго\"","2204052762","220250001","производство комбинированная выработка","WARM"]
[124,"Алтайский край","Город Бийск","01705000","Город Бийск","01705000","27501770","ОАО \"БийскэнергоТеплоТранзит\"","2204056968","220401001","Передача","WARM"]
[125,"Алтайский край","Город Барнаул","01701000","Город Барнаул","01701000","26354847","ОАО \"ИПП \"Алтай\"","2225073266","222501001","производство (некомбинированная выработка)+передача+сбыт","WARM"]
[126,"Алтайский край","Шелаболихинский муниципальный район","01645000","Кипринский сельсовет","01645428","26371324","ОАО \"Кипринское\"","2290000980","229001001","производство (некомбинированная выработка)+передача+сбыт","WARM"]
[127,"Алтайский край","Кулундинский муниципальный район","01622000","Кулундинский сельсовет","01622460","26354895","ОАО \"Кулундаконсервмолоко\"","2253000164","225301001","производство (некомбинированная выработка)+передача+сбыт","WARM"]
[128,"Алтайский край","Благовещенский муниципальный район","01605000","Степноозёрский поссовет","01605157","26354870","ОАО \"Кучуксульфат\"","2235001430","223501001","Передача","WARM"]
[129,"Алтайский край","Благовещенский муниципальный район","01605000","Степноозёрский поссовет","01605157","26354870","ОАО \"Кучуксульфат\"","2235001430","223501001","производство комбинированная выработка","WARM"]
[130,"Алтайский край","Город Рубцовск","01716000","Город Рубцовск","01716000","26653713","ОАО \"Мельник\"","2209006093","220250001","производство (некомбинированная выработка)+передача+сбыт","WARM"]
[131,"Алтайский край","Город Новоалтайск","01713000","Город Новоалтайск","01713000","27505890","ОАО \"НЗМК\"","2208022448","220801001","производство (некомбинированная выработка)+передача+сбыт","WARM"]
[132,"Алтайский край","Павловский муниципальный район","01630000","Стуковский сельсовет","01630473","26758448","ОАО \"Стуковское\"","2261001644","226101001","производство (некомбинированная выработка)+передача+сбыт","WARM"]
[133,"Алтайский край","Город Барнаул","01701000","Город Барнаул","01701000","26648423","ОАО \"Управляющая компания \"Доверие\"","2224119510","222401001","Передача+Сбыт","WARM"]
[134,"Алтайский край","Благовещенский муниципальный район","01605000","Леньковский сельсовет","01605436","26651888","ОАО \"Хлебная база №39\"","2235001743","223501001","производство (некомбинированная выработка)+передача+сбыт","WARM"]
[135,"Алтайский край","Павловский муниципальный район","01630000","Черемновский сельсовет","01630482","26354922","ОАО \"Черемновский сахарный завод\"","2261001027","226101001","производство комбинированная выработка","WARM"]
[136,"Алтайский край","Топчихинский муниципальный район","01649000","Победимский сельсовет","01649452","26371227","ОАО ПР \"Чистюньский\"","2279005833","227901001","производство (некомбинированная выработка)+передача+сбыт","WARM"]
[137,"Алтайский край","Ребрихинский муниципальный район","01635000","Ребрихинский сельсовет","01635464","26515065","ООО \"АПС-Исток\"","2266600592","226601001","производство (некомбинированная выработка)+передача+сбыт","WARM"]
[138,"Алтайский край","Город Алейск","01703000","Город Алейск","01703000","26807667","ООО \"Алейская тепловая компания\"","2201008853","220101001","производство (некомбинированная выработка)+передача+сбыт","WARM"]
[139,"Алтайский край","Зональный муниципальный район","01629000","Зональный сельсовет","01629426","27713242","ООО \"Алтайский Инженерный Центр\"","2225093583","222101001","производство (некомбинированная выработка)+передача+сбыт","WARM"]
[140,"Алтайский край","Город Барнаул","01701000","Город Барнаул","01701000","26649689","ООО \"Алтайэнергосетьпроект\"","2225055563","222501001","производство (некомбинированная выработка)+передача+сбыт","WARM"]
[141,"Алтайский край","Павловский муниципальный район","01630000","Арбузовский сельсовет","01630401","26651880","ООО \"Арбузовские коммунальные системы\"","2261008897","226101001","производство (некомбинированная выработка)+передача+сбыт","WARM"]
[142,"Алтайский край","Бийский муниципальный район","01604000","Первомайский сельсовет","01604470","27952252","ООО \"Аркада\"","2234019498","223401001","производство (некомбинированная выработка)+передача+сбыт","WARM"]
[143,"Алтайский край","Первомайский муниципальный район","01632000","Березовский сельсовет","01632416","27812600","ООО \"Берёзовское ЖКХ\"","2263026588","226301001","производство (некомбинированная выработка)+передача+сбыт","WARM"]
[144,"Алтайский край","Смоленский муниципальный район","01640000","Линевский сельсовет","01640434","28254196","ООО \"БиТЭК\"","2271002830","227101001","производство (некомбинированная выработка)+передача+сбыт","WARM"]
[145,"Алтайский край","Город Бийск","01705000","Город Бийск","01705000","28160632","ООО \"Бийскэнергосервис\"","2204063972","220401001","Передача","WARM"]
[146,"Алтайский край","Первомайский муниципальный район","01632000","Бобровский сельсовет","01632420","26649183","ООО \"Бобровский лесокомбинат\"","2263023354","226301001","производство (некомбинированная выработка)+передача+сбыт","WARM"]
[147,"Алтайский край","Ключевский муниципальный район","01617000","Васильчуковский сельсовет","01617406","26370995","ООО \"ВКС\"","2248005209","224801001","производство (некомбинированная выработка)+передача+сбыт","WARM"]
[148,"Алтайский край","Новичихинский муниципальный район","01628000","Долговский сельсовет","01628411","26790728","ООО \"Верный путь\"","2260002211","226001001","производство (некомбинированная выработка)+передача+сбыт","WARM"]
[149,"Алтайский край","Бийский муниципальный район","01604000","Верх-Бехтемирский сельсовет","01604415","26519989","ООО \"Верх-Бехтемирское\"","2234020038","223401001","производство (некомбинированная выработка)+передача+сбыт","WARM"]
[150,"Алтайский край","Быстроистокский муниципальный район","01607000","Верх-Ануйский сельсовет","01607411","26772537","ООО \"Водопровод\"","2237002855","223701001","производство (некомбинированная выработка)+передача+сбыт","WARM"]
[151,"Алтайский край","Рубцовский муниципальный район","01638000","Рубцовский сельсовет","01638462","26651822","ООО \"Водотеплоснабжения \"Тепло\"","2269009148","226901001","производство (некомбинированная выработка)+передача+сбыт","WARM"]
[152,"Алтайский край","Кулундинский муниципальный район","01622000","Кулундинский сельсовет","01622460","26521481","ООО \"Восток\"","2253005042","225301001","производство (некомбинированная выработка)+передача+сбыт","WARM"]
[153,"Алтайский край","Локтевский муниципальный район","01625000","Георгиевский сельсовет","01625413","27469444","ООО \"Восток\"","2256005516","225601001","производство (некомбинированная выработка)+передача+сбыт","WARM"]
[154,"Алтайский край","Волчихинский муниципальный район","01608000","Волчихинский сельсовет","01608421","28263102","ООО \"Вострово Лес\"","2238003749","223801001","производство (некомбинированная выработка)+передача+сбыт","WARM"]
[155,"Алтайский край","Благовещенский муниципальный район","01605000","Алексеевский сельсовет","01605406","27249233","ООО \"Восход\"","2235007456","223501001","производство (некомбинированная выработка)+передача+сбыт","WARM"]
[156,"Алтайский край","Город Новоалтайск","01713000","Город Новоалтайск","01713000","26653082","ООО \"ГОРЕМ-3\"","0411144305","220501001","производство (некомбинированная выработка)+передача+сбыт","WARM"]
[157,"Алтайский край","Зональный муниципальный район","01629000","Чемровский сельсовет","01629493","26802146","ООО \"Гарант\"","2245004366","224501001","производство (некомбинированная выработка)+передача+сбыт","WARM"]
[158,"Алтайский край","Заринский муниципальный район","01613000","Голухинский сельсовет","01613428","26521928","ООО \"Голухацемсервис\"","2244005367","224401001","производство (некомбинированная выработка)+передача+сбыт","WARM"]
[159,"Алтайский край","Бийский муниципальный район","01604000","Енисейский сельсовет","01604422","28029572","ООО \"Енисейское\"","2234013658","223401001","производство (некомбинированная выработка)+передача+сбыт","WARM"]
[160,"Алтайский край","Город Заринск","01706000","Город Заринск","01706000","26379302","ООО \"ЖКУ\"","2205009865","220501001","производство (некомбинированная выработка)+передача+сбыт","WARM"]
[161,"Алтайский край","Михайловский муниципальный район","01627000","Малиновоозёрский поссовет","01627154","28036686","ООО \"ЖКХ Малиновоозерское\"","2258004980","225801001","производство (некомбинированная выработка)+передача+сбыт","WARM"]
[162,"Алтайский край","Бийский муниципальный район","01604000","Светлоозерский сельсовет","01604480","28422347","ООО \"ЖКХ Светлоозерское\"","2234014041","223401001","производство (некомбинированная выработка)+передача+сбыт","WARM"]
[163,"Алтайский край","Солонешенский муниципальный район","01643000","Солонешенский сельсовет","01643450","26522240","ООО \"Жилищно-коммунальное хозяйство\"","2273320229","227301001","производство (некомбинированная выработка)+передача+сбыт","WARM"]
[164,"Алтайский край","Немецкий Национальный муниципальный район","01660000","Шумановский сельсовет","01660460","26354916","ООО \"Жилищное общество Гальбштадт\"","2259000869","225901001","производство (некомбинированная выработка)+передача+сбыт","WARM"]
[165,"Алтайский край","Бийский муниципальный район","01604000","Заринский сельсовет","01604424","28261891","ООО \"Заринское ЖКХ\"","2234013672","223401001","производство (некомбинированная выработка)+передача+сбыт","WARM"]
[166,"Алтайский край","Город Барнаул","01701000","Город Барнаул","01701000","26650210","ООО \"Затан\"","2225095809","222501001","производство (некомбинированная выработка)+сбыт","WARM"]
[167,"Алтайский край","Хабарский муниципальный район","01656000","Зятьково-Реченский сельсовет","01656412","26371301","ООО \"Зятьково-Реченские ТВС\"","2286003763","228601001","производство (некомбинированная выработка)+передача+сбыт","WARM"]
[168,"Алтайский край","Тальменский муниципальный район","01647000","Тальменский поссовет","01647151","27546813","ООО \"Импульс\"","2277012232","227701001","производство (некомбинированная выработка)+передача+сбыт","WARM"]
[169,"Алтайский край","Алейский муниципальный район","01601000","Кировский сельсовет","01601438","28425086","ООО \"Кировское\"","2231005031","223101001","производство (некомбинированная выработка)+передача+сбыт","WARM"]
[170,"Алтайский край","Ключевский муниципальный район","01617000","Ключевский сельсовет","01617424","26370994","ООО \"Ключевские коммунальные системы\"","2248005199","224801001","производство (некомбинированная выработка)+передача+сбыт","WARM"]
[171,"Алтайский край","Локтевский муниципальный район","01625000","Покровский сельсовет","01625466","28145394","ООО \"Колос\"","2256006044","225601001","производство (некомбинированная выработка)+передача+сбыт","WARM"]
[172,"Алтайский край","Ельцовский муниципальный район","01610000","Ельцовский сельсовет","01610422","28424525","ООО \"Коммунальное\"","2240003993","224001001","производство (некомбинированная выработка)+передача+сбыт","WARM"]
[173,"Алтайский край","Зональный муниципальный район","01629000","Зональный сельсовет","01629426","27284669","ООО \"Коммунальщик\"","2245004408","224501001","Передача+Сбыт","WARM"]
[174,"Алтайский край","Михайловский муниципальный район","01627000","Ракитовский сельсовет","01627444","27254141","ООО \"Коммунальщик\"","2258004878","225801001","производство (некомбинированная выработка)+передача+сбыт","WARM"]
[175,"Алтайский край","Поспелихинский муниципальный район","01634000","Поспелихинский сельсовет","01634489","26629465","ООО \"Коммунальщик\"","2265040605","226501001","производство (некомбинированная выработка)+передача+сбыт","WARM"]
[176,"Алтайский край","Третьяковский муниципальный район","01650000","Староалейский сельсовет","01650466","28272177","ООО \"Коммунальщик\"","2280002788","228001001","производство (некомбинированная выработка)+передача+сбыт","WARM"]
[177,"Алтайский край","Город Камень-на-Оби","01710000","Город Камень-на-Оби","01710000","27876773","ООО \"Коммунальщик-1\"","2207009067","220701001","производство (некомбинированная выработка)","WARM"]
[178,"Алтайский край","Город Камень-на-Оби","01710000","Город Камень-на-Оби","01710000","27876797","ООО \"Коммунальщик-3\"","2207009050","220701001","производство (некомбинированная выработка)","WARM"]
[179,"Алтайский край","Город Барнаул","01701000","Город Барнаул","01701000","26370856","ООО \"Коммунсервис\"","2222027381","222201001","Передача","WARM"]
[180,"Алтайский край","Михайловский муниципальный район","01627000","Михайловский сельсовет","01627416","27254150","ООО \"Коммунсервис\"","2258004807","225801001","производство (некомбинированная выработка)+передача+сбыт","WARM"]
[181,"Алтайский край","Красногорский муниципальный район","01619000","Красногорский сельсовет","01619423","26522303","ООО \"Коммунэнерго\"","2250700792","225001001","производство (некомбинированная выработка)+передача+сбыт","WARM"]
[182,"Алтайский край","Павловский муниципальный район","01630000","Комсомольский сельсовет","01630437","26649243","ООО \"Комсомольское ЖКХ\"","2261009241","226101001","производство (некомбинированная выработка)+передача+сбыт","WARM"]
[183,"Алтайский край","Хабарский муниципальный район","01656000","Коротоякский сельсовет","01656420","26581339","ООО \"Короткоякское коммунальное хозяйство\"","2286003925","228601001","производство (некомбинированная выработка)+передача+сбыт","WARM"]
[184,"Алтайский край","Хабарский муниципальный район","01656000","Хабарский сельсовет","01656493","28424069","ООО \"Кристалл-Хабары\"","2286004189","228601001","производство (некомбинированная выработка)+передача+сбыт","WARM"]
[185,"Алтайский край","Курьинский муниципальный район","01623000","Курьинский сельсовет","01623466","26771639","ООО \"Курьинские коммунальные системы\"","2254003640","225401001","производство (некомбинированная выработка)+передача+сбыт","WARM"]
[186,"Алтайский край","Тальменский муниципальный район","01647000","Ларичихинский сельсовет","01647442","26649323","ООО \"Ларичихинское\"","2277011503","227701001","производство (некомбинированная выработка)+передача+сбыт","WARM"]
[187,"Алтайский край","Бийский муниципальный район","01604000","Лесной сельсовет","01604437","26520004","ООО \"Лесное ЖКХ\"","2234020133","223401001","производство (некомбинированная выработка)+передача+сбыт","WARM"]
[188,"Алтайский край","Локтевский муниципальный район","01625000","Локтевский сельсовет","01625434","27253640","ООО \"Локтевский\"","2256007626","225601001","производство (некомбинированная выработка)+передача+сбыт","WARM"]
[189,"Алтайский край","Поспелихинский муниципальный район","01634000","Калмыцко-Мысовский сельсовет","01634433","26629467","ООО \"Луч\"","2265005230","226501001","производство (некомбинированная выработка)+передача+сбыт","WARM"]
[190,"Алтайский край","Хабарский муниципальный район","01656000","Мартовский сельсовет","01656430","26581341","ООО \"Мартовские тепловодосети\"","2286003918","228601001","производство (некомбинированная выработка)+передача+сбыт","WARM"]
[191,"Алтайский край","Локтевский муниципальный район","01625000","Масальский сельсовет","01625440","27876721","ООО \"Масальское ТВС\"","2256007707","225601001","производство (некомбинированная выработка)+передача+сбыт","WARM"]
[192,"Алтайский край","Город Барнаул","01701000","Город Барнаул","01701000","28424531","ООО \"Металл-Импорт\"","2221206483","222101001","производство (некомбинированная выработка)+передача+сбыт","WARM"]
[193,"Алтайский край","Хабарский муниципальный район","01656000","Новоильинский сельсовет","01656446","28424325","ООО \"Монолит\"","2286004206","228601001","производство (некомбинированная выработка)+передача+сбыт","WARM"]
[194,"Алтайский край","Город Новоалтайск","01713000","Город Новоалтайск","01713000","28069309","ООО \"НЗЖБИ им. Иванова Г.С.\"","2208019364","220801001","производство (некомбинированная выработка)+сбыт","WARM"]
[195,"Алтайский край","Город Бийск","01705000","Город Бийск","01705000","27773444","ООО \"НПК-Энерго\"","2204031610","220401001","Передача","WARM"]
[196,"Алтайский край","Солтонский муниципальный район","01644000","Солтонский сельсовет","01644481","28006792","ООО \"НЭП\"","2274004716","227401001","производство (некомбинированная выработка)+передача+сбыт","WARM"]
[197,"Алтайский край","Тальменский муниципальный район","01647000","Тальменский поссовет","01647151","28052792","ООО \"НЭРИ\"","2277012433","227701001","производство (некомбинированная выработка)+передача+сбыт","WARM"]
[198,"Алтайский край","Город Барнаул","01701000","Город Барнаул","01701000","26524356","ООО \"Научный городок\"","2223054211","222301001","производство (некомбинированная выработка)+передача+сбыт","WARM"]
[199,"Алтайский край","Город Барнаул","01701000","Город Барнаул","01701000","26354846","ООО \"Нерудная партия\"","2225073210","222501001","производство (некомбинированная выработка)+передача+сбыт","WARM"]
[200,"Алтайский край","Тальменский муниципальный район","01647000","Тальменский поссовет","01647151","26649723","ООО \"Новая эра\"","2277011126","227701001","производство (некомбинированная выработка)+передача+сбыт","WARM"]
[201,"Алтайский край","Павловский муниципальный район","01630000","Новозоринский сельсовет","01630455","26521393","ООО \"Новозоринские коммунальные сети\"","2261009153","226101001","производство (некомбинированная выработка)+передача+сбыт","WARM"]
[202,"Алтайский край","Хабарский муниципальный район","01656000","Новоильинский сельсовет","01656446","26581343","ООО \"Новоильинское коммунальное хозяйство\"","2286003900","228601001","производство (некомбинированная выработка)+передача+сбыт","WARM"]
[203,"Алтайский край","Павловский муниципальный район","01630000","Павловский сельсовет","01630460","27254843","ООО \"Огни\"","2261000200","226101001","производство (некомбинированная выработка)+передача+сбыт","WARM"]
[204,"Алтайский край","Первомайский муниципальный район","01632000","Санниковский сельсовет","01632472","27815345","ООО \"ПКС\"","2263025464","226301001","производство (некомбинированная выработка)+передача+сбыт","WARM"]
[205,"Алтайский край","Панкрушихинский муниципальный район","01631000","Панкрушихинский сельсовет","01631456","27664563","ООО \"Панкрушихинское МОКХ\"","2262003718","226201001","производство (некомбинированная выработка)+передача","WARM"]
[206,"Алтайский край","Усть-Пристанский муниципальный район","01655000","Чеканихинский сельсовет","01655491","26650345","ООО \"Петров\"","2221056943","222101001","производство (некомбинированная выработка)+передача+сбыт","WARM"]
[207,"Алтайский край","Павловский муниципальный район","01630000","Прутской сельсовет","01630464","26521387","ООО \"Прутские коммунальные сети\"","2261009121","226101001","производство (некомбинированная выработка)+передача+сбыт","WARM"]
[208,"Алтайский край","Город Рубцовск","01716000","Город Рубцовск","01716000","26370849","ООО \"Районный водоканал\"","2209031420","220901001","производство (некомбинированная выработка)+передача+сбыт","WARM"]
[209,"Алтайский край","Ребрихинский муниципальный район","01635000","Ребрихинский сельсовет","01635464","26654051","ООО \"Ребрихинский лесхоз\"","2266021919","226601001","производство (некомбинированная выработка)+передача+сбыт","WARM"]
[210,"Алтайский край","Павловский муниципальный район","01630000","Новозоринский сельсовет","01630455","26779515","ООО \"Реванш\"","2261005198","226201001","производство (некомбинированная выработка)+передача+сбыт","WARM"]
[211,"Алтайский край","Алейский муниципальный район","01601000","Алейский сельсовет","01601402","28155743","ООО \"Родник\"","2231005000","223101001","производство (некомбинированная выработка)+передача+сбыт","WARM"]
[212,"Алтайский край","Город Бийск","01705000","Город Бийск","01705000","26649177","ООО \"Селф\"","2204040012","220401001","Передача","WARM"]
[213,"Алтайский край","Город Барнаул","01701000","Город Барнаул","01701000","26648417","ООО \"Сетевая компания \"Союз\"","2224117640","222401001","Передача","WARM"]
[214,"Алтайский край","Бийский муниципальный район","01604000","Первомайский сельсовет","01604470","27686555","ООО \"Сибирская торгово-промышленная компания\"","7020036657","223443001","производство (некомбинированная выработка)+передача+сбыт","WARM"]
[215,"Алтайский край","Бийский муниципальный район","01604000","Малоенисейский сельсовет","01604455","28423832","ООО \"ТВТ\"","2234013721","223401001","производство (некомбинированная выработка)+передача+сбыт","WARM"]
[216,"Алтайский край","Поспелихинский муниципальный район","01634000","Поспелихинский сельсовет","01634489","27849321","ООО \"ТЕМП\"","2265005537","226501001","производство (некомбинированная выработка)+передача+сбыт","WARM"]
[217,"Алтайский край","Локтевский муниципальный район","01625000","Город Горняк","01625101","27460114","ООО \"ТЕПЛО №1\"","2256007584","225601001","производство (некомбинированная выработка)+передача+сбыт","WARM"]
[218,"Алтайский край","Локтевский муниципальный район","01625000","Город Горняк","01625101","27460166","ООО \"ТЕПЛО №2\"","2256007591","225601001","производство (некомбинированная выработка)+передача+сбыт","WARM"]
[219,"Алтайский край","Локтевский муниципальный район","01625000","Город Горняк","01625101","27460170","ООО \"ТЕПЛО №3\"","2256007601","225601001","производство (некомбинированная выработка)+передача+сбыт","WARM"]
[220,"Алтайский край","Немецкий Национальный муниципальный район","01660000","Николаевский сельсовет","01660425","26522258","ООО \"ТЕПЛОВОДСЕРВИС\"","2270004017","225901001","производство (некомбинированная выработка)+передача+сбыт","WARM"]
[221,"Алтайский край","Угловский муниципальный район","01653000","Угловский сельсовет","01653488","27848125","ООО \"ТЕПЛОСЕРВИС\"","2283005138","228301001","производство (некомбинированная выработка)+передача+сбыт","WARM"]
[222,"Алтайский край","Бийский муниципальный район","01604000","Первомайский сельсовет","01604470","28268936","ООО \"ТЕСО\"","2234014027","223401001","производство (некомбинированная выработка)+передача+сбыт","WARM"]
[223,"Алтайский край","Благовещенский муниципальный район","01605000","Благовещенский поссовет","01605151","27321004","ООО \"ТСП\"","2235008932","223501001","производство (некомбинированная выработка)+передача+сбыт","WARM"]
[224,"Алтайский край","Первомайский муниципальный район","01632000","Бобровский сельсовет","01632420","27548147","ООО \"Тека и К\"","2263024414","226301001","производство (некомбинированная выработка)+передача+сбыт","WARM"]
[225,"Алтайский край","Ключевский муниципальный район","01617000","Северский сельсовет","01617479","26370993","ООО \"Тепло сервис\"","2248005093","224801001","производство (некомбинированная выработка)+передача+сбыт","WARM"]
[226,"Алтайский край","Волчихинский муниципальный район","01608000","Волчихинский сельсовет","01608421","27798161","ООО \"Тепло\"","2225126937","222501001","производство (некомбинированная выработка)+передача+сбыт","WARM"]
[227,"Алтайский край","Косихинский муниципальный район","01618000","Косихинский сельсовет","01618434","27566985","ООО \"Тепло\"","2249010586","224901001","производство (некомбинированная выработка)+передача+сбыт","WARM"]
[228,"Алтайский край","Шелаболихинский муниципальный район","01645000","Шелаболихинский сельсовет","01645460","27878886","ООО \"Тепло\"","2290000074","229001001","производство (некомбинированная выработка)+передача+сбыт","WARM"]
[229,"Алтайский край","Зональный муниципальный район","01629000","Соколовский сельсовет","01629480","26774255","ООО \"ТеплоВодоСети\"","2245004292","224501001","производство (некомбинированная выработка)+передача+сбыт","WARM"]
[230,"Алтайский край","Завьяловский муниципальный район","01611000","Завьяловский сельсовет","01611434","26370935","ООО \"Тепловик\"","2241003280","224101001","производство (некомбинированная выработка)+передача+сбыт","WARM"]
[231,"Алтайский край","Родинский муниципальный район","01636000","Родинский сельсовет","01636456","26648970","ООО \"Тепловик\"","2267004867","226701001","производство (некомбинированная выработка)+передача+сбыт","WARM"]
[232,"Алтайский край","Табунский муниципальный район","01646000","Табунский сельсовет","01646466","26523526","ООО \"Тепловодсервис\"","2276006081","227601001","производство (некомбинированная выработка)+передача+сбыт","WARM"]
[233,"Алтайский край","Кулундинский муниципальный район","01622000","Кулундинский сельсовет","01622460","26768160","ООО \"Тепловодсеть\"","2253005148","225301001","производство (некомбинированная выработка)+передача+сбыт","WARM"]
[234,"Алтайский край","Шипуновский муниципальный район","01659000","Шипуновский сельсовет","01659495","28145455","ООО \"Тепловые сети\"","2289007011","228901001","производство (некомбинированная выработка)+передача+сбыт","WARM"]
[235,"Алтайский край","Змеиногорский муниципальный район","01614000","город Змеиногорск","01614101","27882393","ООО \"Теплоком 1\"","2206004281","220601001","производство (некомбинированная выработка)+передача+сбыт","WARM"]
[236,"Алтайский край","Змеиногорский муниципальный район","01614000","город Змеиногорск","01614101","27882866","ООО \"Теплоком 2\"","2206004267","220601000","производство (некомбинированная выработка)+передача+сбыт","WARM"]
[237,"Алтайский край","Город Алейск","01703000","Город Алейск","01703000","28424489","ООО \"Теплосервис\"","2201009303","220101001","производство (некомбинированная выработка)+передача+сбыт","WARM"]
[238,"Алтайский край","Мамонтовский муниципальный район","01626000","Мамонтовский сельсовет","01626449","28263517","ООО \"Теплосервис\"","2257005692","225701001","производство (некомбинированная выработка)+передача+сбыт","WARM"]
[239,"Алтайский край","Крутихинский муниципальный район","01621000","Крутихинский сельсовет","01621430","26523575","ООО \"Теплосети\"","2252004007","225201001","производство (некомбинированная выработка)+передача+сбыт","WARM"]
[240,"Алтайский край","Алейский муниципальный район","01601000","Урюпинский сельсовет","01601485","27248449","ООО \"Теплосеть\"","2201007899","223101001","производство (некомбинированная выработка)+передача+сбыт","WARM"]
[241,"Алтайский край","Благовещенский муниципальный район","01605000","Шимолинский сельсовет","01605483","27813477","ООО \"Теплосеть\"","2235009125","223501001","производство (некомбинированная выработка)+передача+сбыт","WARM"]
[242,"Алтайский край","Город Алейск","01703000","Город Алейск","01703000","28424483","ООО \"Теплосеть\"","2201009350","220101001","производство (некомбинированная выработка)+передача+сбыт","WARM"]
[243,"Алтайский край","Город Бийск","01705000","Город Бийск","01705000","26653747","ООО \"Теплосеть\"","2204032117","220401001","Передача","WARM"]
[244,"Алтайский край","Алейский муниципальный район","01601000","Алейский сельсовет","01601402","28275883","ООО \"Теплосеть+\"","2231005024","223101001","производство (некомбинированная выработка)+передача+сбыт","WARM"]
[245,"Алтайский край","Усть-Калманский муниципальный район","01654000","Усть-Калманский сельсовет","01654455","28421872","ООО \"Теплоснабжение\"","2284004200","228401001","производство (некомбинированная выработка)+передача+сбыт","WARM"]
[246,"Алтайский край","Новичихинский муниципальный район","01628000","Новичихинский сельсовет","01628444","26520198","ООО \"Теплострой\"","2260003310","226001001","производство (некомбинированная выработка)+передача+сбыт","WARM"]
[247,"Алтайский край","Бийский муниципальный район","01604000","Первомайский сельсовет","01604470","26767895","ООО \"Теплотранс\"","2234013023","223401001","производство (некомбинированная выработка)+передача+сбыт","WARM"]
[248,"Алтайский край","Поспелихинский муниципальный район","01634000","Поспелихинский сельсовет","01634489","28236902","ООО \"Теплоэнерго\"","2265005752","226501001","производство (некомбинированная выработка)+передача+сбыт","WARM"]
[249,"Алтайский край","Город Бийск","01705000","Город Бийск","01705000","27818951","ООО \"Теплоэнергогаз\"","2204059447","220401001","производство (некомбинированная выработка)+передача+сбыт","WARM"]
[250,"Алтайский край","Шелаболихинский муниципальный район","01645000","Шелаболихинский сельсовет","01645460","28425076","ООО \"Термо\"","2290000155","229001001","производство (некомбинированная выработка)+передача+сбыт","WARM"]
[251,"Алтайский край","Крутихинский муниципальный район","01621000","Крутихинский сельсовет","01621430","28077692","ООО \"Техком\"","2252004198","225201001","производство (некомбинированная выработка)+передача+сбыт","WARM"]
[252,"Алтайский край","Хабарский муниципальный район","01656000","Тополинский сельсовет","01656486","26371302","ООО \"Тополинский КЭК\"","2286003770","228601001","производство (некомбинированная выработка)+передача+сбыт","WARM"]
[253,"Алтайский край","Егорьевский муниципальный район","01609000","Новоегорьевский сельсовет","01609433","26809828","ООО \"Управляющая компания \"Егорьевское\"","2239004008","223901001","производство (некомбинированная выработка)+передача+сбыт","WARM"]
[254,"Алтайский край","Красногорский муниципальный район","01619000","Быстрянский сельсовет","01619407","27798148","ООО \"Управляющая компания \"Жилищный комплекс - Плюс\"","2250004523","225001001","производство (некомбинированная выработка)+передача+сбыт","WARM"]
[255,"Алтайский край","Город Барнаул","01701000","Город Барнаул","01701000","27831887","ООО \"Управляющая компания \"Уютный дом\"","2224148261","222401001","производство (некомбинированная выработка)+передача+сбыт","WARM"]
[256,"Алтайский край","Усть-Калманский муниципальный район","01654000","Усть-Калманский сельсовет","01654455","26371288","ООО \"Управляющая компания Усть-Калманские коммунальные системы\"","2284007152","228401001","производство (некомбинированная выработка)+передача+сбыт","WARM"]
[257,"Алтайский край","Хабарский муниципальный район","01656000","Хабарский сельсовет","01656493","26354987","ООО \"Хабарский коммунальноэнергетический комплекс\"","2286003749","228601001","производство (некомбинированная выработка)+передача+сбыт","WARM"]
[258,"Алтайский край","Чарышский муниципальный район","01658000","Чарышский сельсовет","01658488","26758348","ООО \"Чарышское МЖКП\"","2288003092","228801001","производство (некомбинированная выработка)+передача+сбыт","WARM"]
[259,"Алтайский край","Павловский муниципальный район","01630000","Черемновский сельсовет","01630482","26521389","ООО \"Черемновские коммунальные системы\"","2261008311","226101001","производство (некомбинированная выработка)+передача+сбыт","WARM"]
[260,"Алтайский край","Быстроистокский муниципальный район","01607000","Приобский сельсовет","01607437","28145080","ООО \"Эдем\"","2237000520","223701001","производство (некомбинированная выработка)+передача+сбыт","WARM"]
[261,"Алтайский край","Змеиногорский муниципальный район","01614000","Барановский сельсовет","01614422","27253051","ООО \"Энергия 1\"","2206004179","220601001","производство (некомбинированная выработка)+передача+сбыт","WARM"]
[262,"Алтайский край","Змеиногорский муниципальный район","01614000","Барановский сельсовет","01614422","27253102","ООО \"Энергия 2\"","2206004186","220601001","производство (некомбинированная выработка)+передача+сбыт","WARM"]
[263,"Алтайский край","Смоленский муниципальный район","01640000","Новотырышкинский сельсовет","01640445","26354954","ООО \"Энергия\"","2271004901","227101001","производство (некомбинированная выработка)+передача+сбыт","WARM"]
[264,"Алтайский край","Третьяковский муниципальный район","01650000","Староалейский сельсовет","01650466","26817000","ООО \"Энергия\"","2280004697","228001001","производство (некомбинированная выработка)+передача+сбыт","WARM"]
[265,"Алтайский край","Город Барнаул","01701000","Город Барнаул","01701000","26653781","ООО \"Энерговодснаб\"","2223966056","222301001","производство (некомбинированная выработка)+передача+сбыт","WARM"]
[266,"Алтайский край","Город Рубцовск","01716000","Город Рубцовск","01716000","28153202","ООО \"Энергоресурс\"","2209041860","220901001","производство (некомбинированная выработка)+передача+сбыт","WARM"]
[267,"Алтайский край","Целинный муниципальный район","01657000","Целинный сельсовет","01657479","28009063","ООО \"Эпсилон - Энерджи\"","5406666672","540601001","производство (некомбинированная выработка)+передача+сбыт","WARM"]
[268,"Алтайский край","Ельцовский муниципальный район","01610000","Ельцовский сельсовет","01610422","27495035","ООО \"Эпсилон\"","2240003908","224001001","производство (некомбинированная выработка)+передача+сбыт","WARM"]
[269,"Алтайский край","Целинный муниципальный район","01657000","Целинный сельсовет","01657479","27678605","ООО ЖКХ \"Бочкари\"","2287006157","228701001","производство (некомбинированная выработка)+передача+сбыт","WARM"]
[270,"Алтайский край","Советский муниципальный район","01642000","Советский сельсовет","01642452","27675613","ООО ТС \"Советское\"","2272005873","227201001","производство (некомбинированная выработка)+передача+сбыт","WARM"]
[271,"Алтайский край","Краснощековский муниципальный район","01620000","Краснощековский сельсовет","01620430","26770937","ООО УК \"Краснощековские коммунальные системы\"","2251004727","225101001","производство (некомбинированная выработка)+передача+сбыт","WARM"]
[272,"Алтайский край","Город Алейск","01703000","Город Алейск","01703000","26648383","ПО \"Алейторг\"","2231004052","220101001","производство (некомбинированная выработка)+передача+сбыт","WARM"]
[273,"Алтайский край","Город Барнаул","01701000","Город Барнаул","01701000","26354995","ПО \"Коопцентр\"","2291000077","222501001","производство (некомбинированная выработка)+передача+сбыт","WARM"]
[274,"Алтайский край","Павловский муниципальный район","01630000","Бурановский сельсовет","01630403","26371104","СПК \"Бурановский\"","2261001700","226101001","производство (некомбинированная выработка)+передача+сбыт","WARM"]
[275,"Алтайский край","Третьяковский муниципальный район","01650000","Плосковский сельсовет","01650455","26371237","СПК \"Плосковский\"","2280001382","228001001","производство (некомбинированная выработка)+передача+сбыт","WARM"]
[276,"Алтайский край","Топчихинский муниципальный район","01649000","Белояровский сельсовет","01649403","26371222","СПК \"Родина\"","2279002350","227901001","производство (некомбинированная выработка)+передача+сбыт","WARM"]
[277,"Алтайский край","Третьяковский муниципальный район","01650000","Екатерининский сельсовет","01650411","26371232","СПК \"Сибирь\"","2280000491","228001001","производство (некомбинированная выработка)+передача+сбыт","WARM"]
[278,"Алтайский край","Благовещенский муниципальный район","01605000","Суворовский сельсовет","01605461","27813510","СПК \"Суворовский\"","2235002352","223501001","производство (некомбинированная выработка)+передача+сбыт","WARM"]
[279,"Алтайский край","Завьяловский муниципальный район","01611000","Гоноховский сельсовет","01611423","26370933","СПК к-з \"Путь к коммунизму\"","2241000579","224101001","производство (некомбинированная выработка)+передача+сбыт","WARM"]
[280,"Алтайский край","Немецкий Национальный муниципальный район","01660000","Редкодубравский сельсовет","01660450","26371096","СХА ПЗ \"им. К.Маркса\"","2259000040","225901001","производство (некомбинированная выработка)+передача+сбыт","WARM"]
[281,"Алтайский край","Немецкий Национальный муниципальный район","01660000","Гришковский сельсовет","01660405","26371097","СХА ПЗ колхоз \"Степной\"","2259000185","225901001","производство (некомбинированная выработка)+передача+сбыт","WARM"]
[282,"Алтайский край","Город Барнаул","01701000","Город Барнаул","01701000","26649691","ТСЖ \"Городок\"","2225068650","222501001","производство (некомбинированная выработка)+передача+сбыт","WARM"]
[283,"Алтайский край","Город Барнаул","01701000","Город Барнаул","01701000","26354840","УАКСП \"Санаторий \"Барнаульский\"","2225020666","222501001","производство (некомбинированная выработка)+передача+сбыт","WARM"]
[284,"Алтайский край","Ключевский муниципальный район","01617000","Новоцелинный сельсовет","01617437","26370989","УП \"ЦКХ\"","2248004903","224801001","производство (некомбинированная выработка)+передача+сбыт","WARM"]
[285,"Алтайский край","Город Новоалтайск","01713000","Город Новоалтайск","01713000","26652965","ФГКУ комбинат \"Аврора\"","2208000941","220801001","производство (некомбинированная выработка)+передача+сбыт","WARM"]
[286,"Алтайский край","Город Барнаул","01701000","Город Барнаул","01701000","26354833","ФГКУ комбинат \"Труд\" РОСРЕЗЕРВА","2222019704","222201001","производство (некомбинированная выработка)+передача+сбыт","WARM"]
[287,"Алтайский край","Город Барнаул","01701000","Город Барнаул","01701000","26650452","ФГУП \"Краевой центр дезинфекции\"","2225005749","222501001","производство (некомбинированная выработка)+передача+сбыт","WARM"]
[288,"Алтайский край","Город Новоалтайск","01713000","Город Новоалтайск","01713000","28145425","ФКУ \"Исправительная колония № 11 УФСИН по Алтайскому краю\"","2208003879","220801001","производство (некомбинированная выработка)+передача+сбыт","WARM"]
[289,"Алтайский край","Город Барнаул","01701000","Город Барнаул","01701000","26354842","ФКУ \"Следственный изолятор № 1 УФСИН по Алтайскому краю\"","2225029612","222501001","производство (некомбинированная выработка)+передача+сбыт","WARM"]
[290,"Алтайский край","Город Бийск","01705000","Город Бийск","01705000","26354851","ФКУ Бийская ВК УФСИН России по Алтайскому краю","2227024218","220401001","производство (некомбинированная выработка)+передача+сбыт","WARM"]
[291,"Алтайский край","Город Барнаул","01701000","Город Барнаул","01701000","26649228","ФКУ ИК № 3 УФСИН России по Алтайскому краю","2222013156","222201001","производство (некомбинированная выработка)+передача+сбыт","WARM"]
[292,"Алтайский край","Город Новоалтайск","01713000","Город Новоалтайск","01713000","26354820","ФКУ ЛИУ-8 УФСИН России по Алтайскому краю","2208007591","220801001","производство (некомбинированная выработка)+передача+сбыт","WARM"]
[293,"Алтайский край","Город Барнаул","01701000","Город Барнаул","01701000","28131960","ФКУЗ \"МСЧ МВД России по Алтайскому краю\"","2225018459","222501001","производство (некомбинированная выработка)+передача+сбыт","WARM"]
[294,"Алтайский край","","","","","27366801","филиал ОАО \"РЭУ\"  \"Новосибирский\"","7714783092","540543001","производство (некомбинированная выработка)+передача+сбыт","WARM"]

{"sheet":"modClassifierValidate","index":24,"n_rows":0,"n_cols":0,"rows_kept":0,"cut":false,"hidden":true,"merged":[]}

{"sheet":"modProv","index":25,"n_rows":0,"n_cols":0,"rows_kept":0,"cut":false,"hidden":true,"merged":[]}

{"sheet":"modHyp","index":26,"n_rows":0,"n_cols":0,"rows_kept":0,"cut":false,"hidden":true,"merged":[]}

{"sheet":"modList00","index":27,"n_rows":0,"n_cols":0,"rows_kept":0,"cut":false,"hidden":true,"merged":[]}

{"sheet":"modList02","index":28,"n_rows":0,"n_cols":0,"rows_kept":0,"cut":false,"hidden":true,"merged":[]}

{"sheet":"modList03","index":29,"n_rows":0,"n_cols":0,"rows_kept":0,"cut":false,"hidden":true,"merged":[]}

{"sheet":"modList04","index":30,"n_rows":0,"n_cols":0,"rows_kept":0,"cut":false,"hidden":true,"merged":[]}

{"sheet":"modList05","index":31,"n_rows":0,"n_cols":0,"rows_kept":0,"cut":false,"hidden":true,"merged":[]}

{"sheet":"modList06","index":32,"n_rows":0,"n_cols":0,"rows_kept":0,"cut":false,"hidden":true,"merged":[]}

{"sheet":"modList07","index":33,"n_rows":0,"n_cols":0,"rows_kept":0,"cut":false,"hidden":true,"merged":[]}

{"sheet":"modfrmDateChoose","index":34,"n_rows":0,"n_cols":0,"rows_kept":0,"cut":false,"hidden":true,"merged":[]}

{"sheet":"modComm","index":35,"n_rows":0,"n_cols":0,"rows_kept":0,"cut":false,"hidden":true,"merged":[]}

{"sheet":"modThisWorkbook","index":36,"n_rows":0,"n_cols":0,"rows_kept":0,"cut":false,"hidden":true,"merged":[]}

{"sheet":"REESTR_MO","index":37,"n_rows":296,"n_cols":4,"rows_kept":296,"cut":false,"hidden":true,"merged":[]}
["№","МР","МО","МО_ОКТМО"]
[1,"Александро-Невский муниципальный район","Александро-Невский муниципальный район",61620000]
[2,"Александро-Невский муниципальный район","Александро-Невское",61620151]
[3,"Александро-Невский муниципальный район","Благовское",61620405]
[4,"Александро-Невский муниципальный район","Борисовское",61620410]
[5,"Александро-Невский муниципальный район","Каширинское",61620450]
[6,"Александро-Невский муниципальный район","Нижнеякимецкое",61620445]
[7,"Александро-Невский муниципальный район","Просеченское",61620460]
[8,"Город Касимов","Город Касимов",61705000]
[9,"Город Рязань","Город Рязань",61701000]
[10,"Город Сасово","Город Сасово",61710000]
[11,"Город Скопин","Город Скопин",61715000]
[12,"Ермишинский муниципальный район","Азеевское",61602405]
[13,"Ермишинский муниципальный район","Ермишинский муниципальный район",61602000]
[14,"Ермишинский муниципальный район","Ермишинское",61602151]
[15,"Ермишинский муниципальный район","Мердушинское",61602425]
[16,"Ермишинский муниципальный район","Надежкинское",61602430]
[17,"Ермишинский муниципальный район","Нарминское",61602435]
[18,"Ермишинский муниципальный район","Савватемское",61602440]
[19,"Захаровский муниципальный район","Безлыченское",61604412]
[20,"Захаровский муниципальный район","Большекоровинское",61604415]
[21,"Захаровский муниципальный район","Добро-Пчельское",61604430]
[22,"Захаровский муниципальный район","Елинское",61604432]
[23,"Захаровский муниципальный район","Захаровский муниципальный район",61604000]
[24,"Захаровский муниципальный район","Захаровское",61604440]
[25,"Захаровский муниципальный район","Плахинское",61604465]
[26,"Захаровский муниципальный район","Сменовское",61604425]
[27,"Кадомский муниципальный район","Восходское",61606405]
[28,"Кадомский муниципальный район","Енкаевское",61606410]
[29,"Кадомский муниципальный район","Кадомский муниципальный район",61606000]
[30,"Кадомский муниципальный район","Кадомское",61606151]
[31,"Кадомский муниципальный район","Котелинское",61606420]
[32,"Кадомский муниципальный район","Кущапинское",61606430]
[33,"Касимовский муниципальный район","Ардабьевское",61608403]
[34,"Касимовский муниципальный район","Ахматовское",61608406]
[35,"Касимовский муниципальный район","Булгаковское",61608439]
[36,"Касимовский муниципальный район","Гиблицкое",61608418]
[37,"Касимовский муниципальный район","Гусевское",61608154]
[38,"Касимовский муниципальный район","Дмитриевское",61608421]
[39,"Касимовский муниципальный район","Елатомское",61608156]
[40,"Касимовский муниципальный район","Ермоловское",61608424]
[41,"Касимовский муниципальный район","Ибердусское",61608430]
[42,"Касимовский муниципальный район","Касимовский муниципальный район",61608000]
[43,"Касимовский муниципальный район","Китовское",61608433]
[44,"Касимовский муниципальный район","Клетинское",61608434]
[45,"Касимовский муниципальный район","Которовское",61608442]
[46,"Касимовский муниципальный район","Крутоярское",61608453]
[47,"Касимовский муниципальный район","Лашманское",61608454]
[48,"Касимовский муниципальный район","Лощининское",61608471]
[49,"Касимовский муниципальный район","Новодеревенское",61608456]
[50,"Касимовский муниципальный район","Овчинниковское",61608459]
[51,"Касимовский муниципальный район","Первинское",61608462]
[52,"Касимовский муниципальный район","Погостинское",61608465]
[53,"Касимовский муниципальный район","Савостьяновское",61608468]
[54,"Касимовский муниципальный район","Сынтульское",61608160]
[55,"Касимовский муниципальный район","Токаревское",61608474]
[56,"Касимовский муниципальный район","Торбаевское",61608412]
[57,"Касимовский муниципальный район","Шостьинское",61608480]
[58,"Клепиковский муниципальный район","Алексеевское",61610403]
[59,"Клепиковский муниципальный район","Болоньское",61610415]
[60,"Клепиковский муниципальный район","Бусаевское",61610418]
[61,"Клепиковский муниципальный район","Екшурское",61610451]
[62,"Клепиковский муниципальный район","Клепиковский муниципальный район",61610000]
[63,"Клепиковский муниципальный район","Колесниковское",61610448]
[64,"Клепиковский муниципальный район","Криушинское",61610454]
[65,"Клепиковский муниципальный район","Молькинское",61610475]
[66,"Клепиковский муниципальный район","Ненашкинское",61610487]
[67,"Клепиковский муниципальный район","Оськинское",61610472]
[68,"Клепиковский муниципальный район","Спас-Клепиковское",61610101]
[69,"Клепиковский муниципальный район","Тумское",61610154]
[70,"Клепиковский муниципальный район","Уткинское",61610421]
[71,"Кораблинский муниципальный район","Бобровинское",61612408]
[72,"Кораблинский муниципальный район","Кипчаковское",61612424]
[73,"Кораблинский муниципальный район","Ключанское",61612428]
[74,"Кораблинский муниципальный район","Ковалинское",61612432]
[75,"Кораблинский муниципальный район","Кораблинский муниципальный район",61612000]
[76,"Кораблинский муниципальный район","Кораблинское",61612101]
[77,"Кораблинский муниципальный район","Молвинослободское",61612456]
[78,"Кораблинский муниципальный район","Незнановское",61612448]
[79,"Кораблинский муниципальный район","Пехлецкое",61612460]
[80,"Кораблинский муниципальный район","Пустотинское",61612464]
[81,"Кораблинский муниципальный район","Яблоневское",61612484]
[82,"Милославский муниципальный район","Богородицкое",61615408]
[83,"Милославский муниципальный район","Большеподовечинское",61615412]
[84,"Милославский муниципальный район","Горняцкое",61615422]
[85,"Милославский муниципальный район","Кочуровское",61615428]
[86,"Милославский муниципальный район","Липяговское",61615432]
[87,"Милославский муниципальный район","Милославский муниципальный район",61615000]
[88,"Милославский муниципальный район","Павловское",61615456]
[89,"Милославский муниципальный район","Центральное",61615160]
[90,"Милославский муниципальный район","Чернавское",61615472]
[91,"Милославский муниципальный район","городское поселение Милославское",61615151]
[92,"Милославский муниципальный район","сельское поселение Милославское",61615444]
[93,"Михайловский муниципальный район","Виленское",61617406]
[94,"Михайловский муниципальный район","Голдинское",61617412]
[95,"Михайловский муниципальный район","Горностаевское",61617415]
[96,"Михайловский муниципальный район","Грязновское",61617418]
[97,"Михайловский муниципальный район","Жмуровское",61617421]
[98,"Михайловский муниципальный район","Ильичевское",61617476]
[99,"Михайловский муниципальный район","Каморинское",61617433]
[100,"Михайловский муниципальный район","Красновское",61617439]
[101,"Михайловский муниципальный район","Михайловский муниципальный район",61617000]
[102,"Михайловский муниципальный район","Михайловское",61617101]
[103,"Михайловский муниципальный район","Новопанское",61617448]
[104,"Михайловский муниципальный район","Октябрьское",61617154]
[105,"Михайловский муниципальный район","Печерниковское",61617451]
[106,"Михайловский муниципальный район","Поярковское",61617457]
[107,"Михайловский муниципальный район","Рачатниковское",61617460]
[108,"Михайловский муниципальный район","Слободское",61617467]
[109,"Михайловский муниципальный район","Стрелецко-Высельское",61617470]
[110,"Михайловский муниципальный район","Трепольское",61617473]
[111,"Михайловский муниципальный район","Чуриковское",61617485]
[112,"Михайловский муниципальный район","Щетининское",61617491]
[113,"Пителинский муниципальный район","Ермо-Николаевское",61623420]
[114,"Пителинский муниципальный район","Нестеровское",61623425]
[115,"Пителинский муниципальный район","Пеньковское",61623435]
[116,"Пителинский муниципальный район","Пителинский муниципальный район",61623000]
[117,"Пителинский муниципальный район","Пителинское",61623151]
[118,"Пителинский муниципальный район","Потапьевское",61623450]
[119,"Пронский муниципальный район","Малинищинское",61625435]
[120,"Пронский муниципальный район","Мамоновское",61625440]
[121,"Пронский муниципальный район","Новомичуринское",61625114]
[122,"Пронский муниципальный район","Октябрьское",61625445]
[123,"Пронский муниципальный район","Орловское",61625450]
[124,"Пронский муниципальный район","Погореловское",61625455]
[125,"Пронский муниципальный район","Пронский муниципальный район",61625000]
[126,"Пронский муниципальный район","Пронское",61625151]
[127,"Пронский муниципальный район","Тырновское",61625405]
[128,"Путятинский муниципальный район","Береговское",61626406]
[129,"Путятинский муниципальный район","Большеекатериновское",61626403]
[130,"Путятинский муниципальный район","Карабухинское",61626424]
[131,"Путятинский муниципальный район","Песочинское",61626432]
[132,"Путятинский муниципальный район","Путятинский муниципальный район",61626000]
[133,"Путятинский муниципальный район","Путятинское",61626436]
[134,"Путятинский муниципальный район","Строевское",61626412]
[135,"Рыбновский муниципальный район","Алешинское",61627404]
[136,"Рыбновский муниципальный район","Баграмовское",61627406]
[137,"Рыбновский муниципальный район","Батуринское",61627408]
[138,"Рыбновский муниципальный район","Вакинское",61627416]
[139,"Рыбновский муниципальный район","Глебковское",61627418]
[140,"Рыбновский муниципальный район","Истобниковское",61627424]
[141,"Рыбновский муниципальный район","Кузьминское",61627436]
[142,"Рыбновский муниципальный район","Пионерское",61627476]
[143,"Рыбновский муниципальный район","Пощуповское",61627456]
[144,"Рыбновский муниципальный район","Рыбновский муниципальный район",61627000]
[145,"Рыбновский муниципальный район","Рыбновское",61627101]
[146,"Рыбновский муниципальный район","Селецкое",61627460]
[147,"Рыбновский муниципальный район","Ходынинское",61627472]
[148,"Рыбновский муниципальный район","Чурилковское",61627464]
[149,"Ряжский муниципальный район","Алешинское",61630405]
[150,"Ряжский муниципальный район","Дегтянское",61630415]
[151,"Ряжский муниципальный район","Журавинское",61630420]
[152,"Ряжский муниципальный район","Петровское",61630450]
[153,"Ряжский муниципальный район","Поплевинское",61630460]
[154,"Ряжский муниципальный район","Ряжский муниципальный район",61630000]
[155,"Ряжский муниципальный район","Ряжское",61630101]
[156,"Рязанский муниципальный район","Варсковское",61634402]
[157,"Рязанский муниципальный район","Высоковское",61634409]
[158,"Рязанский муниципальный район","Вышгородское",61634412]
[159,"Рязанский муниципальный район","Дубровическое",61634427]
[160,"Рязанский муниципальный район","Дядьковское",61634430]
[161,"Рязанский муниципальный район","Екимовское",61634433]
[162,"Рязанский муниципальный район","Заборьевское",61634436]
[163,"Рязанский муниципальный район","Заокское",61634439]
[164,"Рязанский муниципальный район","Искровское",61634485]
[165,"Рязанский муниципальный район","Листвянское",61634457]
[166,"Рязанский муниципальный район","Льговское",61634460]
[167,"Рязанский муниципальный район","Мурминское",61634401]
[168,"Рязанский муниципальный район","Окское",61634475]
[169,"Рязанский муниципальный район","Подвязьевское",61634478]
[170,"Рязанский муниципальный район","Полянское",61634483]
[171,"Рязанский муниципальный район","Рязанский муниципальный район",61634000]
[172,"Рязанский муниципальный район","Семеновское",61634495]
[173,"Рязанский муниципальный район","Турлатовское",61634496]
[174,"Рязанский муниципальный район","Тюшевское",61634498]
[175,"Сапожковский муниципальный район","Березниковское",61637435]
[176,"Сапожковский муниципальный район","Канинское",61637410]
[177,"Сапожковский муниципальный район","Михеевское",61637405]
[178,"Сапожковский муниципальный район","Морозово-Борковское",61637430]
[179,"Сапожковский муниципальный район","Сапожковский муниципальный район",61637000]
[180,"Сапожковский муниципальный район","Сапожковское",61637151]
[181,"Сараевский муниципальный район","Алексеевское",61640403]
[182,"Сараевский муниципальный район","Борецкое",61640412]
[183,"Сараевский муниципальный район","Бычковское",61640415]
[184,"Сараевский муниципальный район","Высоковское",61640424]
[185,"Сараевский муниципальный район","Желобовское",61640430]
[186,"Сараевский муниципальный район","Кривское",61640436]
[187,"Сараевский муниципальный район","Можарское",61640442]
[188,"Сараевский муниципальный район","Муравлянское",61640448]
[189,"Сараевский муниципальный район","Напольновское",61640451]
[190,"Сараевский муниципальный район","Новобокинское",61640454]
[191,"Сараевский муниципальный район","Сараевский муниципальный район",61640000]
[192,"Сараевский муниципальный район","Сараевское",61640151]
[193,"Сараевский муниципальный район","Сысоевское",61640469]
[194,"Сараевский муниципальный район","Телятниковское",61640472]
[195,"Сараевский муниципальный район","Ягодновское",61640481]
[196,"Сасовский муниципальный район","Агломазовское",61642403]
[197,"Сасовский муниципальный район","Алешинское",61642406]
[198,"Сасовский муниципальный район","Батьковское",61642415]
[199,"Сасовский муниципальный район","Берестянское",61642408]
[200,"Сасовский муниципальный район","Гавриловское",61642418]
[201,"Сасовский муниципальный район","Глядковское",61642420]
[202,"Сасовский муниципальный район","Демушкинское",61642466]
[203,"Сасовский муниципальный район","Каргашинское",61642424]
[204,"Сасовский муниципальный район","Кустаревское",61642433]
[205,"Сасовский муниципальный район","Малостуденецкое",61642439]
[206,"Сасовский муниципальный район","Нижнемальцевское",61642448]
[207,"Сасовский муниципальный район","Новоберезовское",61642454]
[208,"Сасовский муниципальный район","Придорожное",61642464]
[209,"Сасовский муниципальный район","Сасовский муниципальный район",61642000]
[210,"Сасовский муниципальный район","Сотницынское",61642470]
[211,"Сасовский муниципальный район","Трудолюбовское",61642463]
[212,"Скопинский муниципальный район","Вослебовское",61644412]
[213,"Скопинский муниципальный район","Горловское",61644415]
[214,"Скопинский муниципальный район","Ильинское",61644430]
[215,"Скопинский муниципальный район","Корневское",61644445]
[216,"Скопинский муниципальный район","Павелецкое",61644154]
[217,"Скопинский муниципальный район","Побединское",61644157]
[218,"Скопинский муниципальный район","Полянское",61644478]
[219,"Скопинский муниципальный район","Скопинский муниципальный район",61644000]
[220,"Скопинский муниципальный район","Успенское",61644488]
[221,"Скопинский муниципальный район","Шелемишевское",61644496]
[222,"Спасский муниципальный район","Выжелесское",61646409]
[223,"Спасский муниципальный район","Гавриловское",61646415]
[224,"Спасский муниципальный район","Заречинское",61646434]
[225,"Спасский муниципальный район","Ижевское",61646443]
[226,"Спасский муниципальный район","Исадское",61646446]
[227,"Спасский муниципальный район","Кирицкое",61646452]
[228,"Спасский муниципальный район","Киструсское",61646488]
[229,"Спасский муниципальный район","Кутуковское",61646455]
[230,"Спасский муниципальный район","Лакашинское",61646458]
[231,"Спасский муниципальный район","Михальское",61646461]
[232,"Спасский муниципальный район","Панинское",61646473]
[233,"Спасский муниципальный район","Перкинское",61646476]
[234,"Спасский муниципальный район","Собчаковское",61646485]
[235,"Спасский муниципальный район","Спасск-Рязанское",61646101]
[236,"Спасский муниципальный район","Спасский муниципальный район",61646000]
[237,"Спасский муниципальный район","Троицкое",61646493]
[238,"Спасский муниципальный район","Федотьевское",61646498]
[239,"Старожиловский муниципальный район","Гребневское",61648420]
[240,"Старожиловский муниципальный район","Гулынское",61648425]
[241,"Старожиловский муниципальный район","Истьинское",61648435]
[242,"Старожиловский муниципальный район","Ленинское",61648438]
[243,"Старожиловский муниципальный район","Мелекшинское",61648440]
[244,"Старожиловский муниципальный район","Старожиловский муниципальный район",61648000]
[245,"Старожиловский муниципальный район","Старожиловское",61648151]
[246,"Старожиловский муниципальный район","Столпянское",61648460]
[247,"Ухоловский муниципальный район","Калининское",61650430]
[248,"Ухоловский муниципальный район","Коноплинское",61650440]
[249,"Ухоловский муниципальный район","Ольховское",61650450]
[250,"Ухоловский муниципальный район","Смолеевское",61650455]
[251,"Ухоловский муниципальный район","Ухоловский муниципальный район",61650000]
[252,"Ухоловский муниципальный район","Ухоловское",61650151]
[253,"Чучковский муниципальный район","Аладьинское",61653405]
[254,"Чучковский муниципальный район","Завидовское",61653420]
[255,"Чучковский муниципальный район","Остро-Пластиковское",61653435]
[256,"Чучковский муниципальный район","Пертовское",61653440]
[257,"Чучковский муниципальный район","Ункосовское",61653450]
[258,"Чучковский муниципальный район","Чучковский муниципальный район",61653000]
[259,"Чучковский муниципальный район","Чучковское",61653151]
[260,"Шацкий муниципальный район","Агишевское",61656406]
[261,"Шацкий муниципальный район","Борковское",61656415]
[262,"Шацкий муниципальный район","Желанновское",61656418]
[263,"Шацкий муниципальный район","Каверинское",61656421]
[264,"Шацкий муниципальный район","Казачинское",61656427]
[265,"Шацкий муниципальный район","Кермисинское",61656433]
[266,"Шацкий муниципальный район","Куплинское",61656439]
[267,"Шацкий муниципальный район","Кучасьевское",61656442]
[268,"Шацкий муниципальный район","Лесно-Конобеевское",61656445]
[269,"Шацкий муниципальный район","Лесно-Полянское",61656448]
[270,"Шацкий муниципальный район","Новочернеевское",61656451]
[271,"Шацкий муниципальный район","Ольховское",61656454]
[272,"Шацкий муниципальный район","Печинское",61656457]
[273,"Шацкий муниципальный район","Польно-Ялтуновское",61656463]
[274,"Шацкий муниципальный район","Чернослободское",61656484]
[275,"Шацкий муниципальный район","Шацкий муниципальный район",61656000]
[276,"Шацкий муниципальный район","Шацкое",61656101]
[277,"Шацкий муниципальный район","Ямбирнское",61656493]
[278,"Шиловский муниципальный район","Аделинское",61658403]
[279,"Шиловский муниципальный район","Борковское",61658475]
[280,"Шиловский муниципальный район","Боровское",61658415]
[281,"Шиловский муниципальный район","Ерахтурское",61658424]
[282,"Шиловский муниципальный район","Желудевское",61658427]
[283,"Шиловский муниципальный район","Задубровское",61658430]
[284,"Шиловский муниципальный район","Занино-Починковское",61658445]
[285,"Шиловский муниципальный район","Ибредское",61658473]
[286,"Шиловский муниципальный район","Инякинское",61658436]
[287,"Шиловский муниципальный район","Краснохолмское",61658439]
[288,"Шиловский муниципальный район","Лесновское",61658157]
[289,"Шиловский муниципальный район","Мосоловское",61658448]
[290,"Шиловский муниципальный район","Санское",61658472]
[291,"Шиловский муниципальный район","Тереховское",61658478]
[292,"Шиловский муниципальный район","Тимошкинское",61658481]
[293,"Шиловский муниципальный район","Тырновское",61658484]
[294,"Шиловский муниципальный район","Шиловский муниципальный район",61658000]
[295,"Шиловский муниципальный район","Шиловское",61658151]

{"sheet":"modfrmReestrMR","index":38,"n_rows":0,"n_cols":0,"rows_kept":0,"cut":false,"hidden":true,"merged":[]}

{"sheet":"modfrmCheckUpdates","index":39,"n_rows":0,"n_cols":0,"rows_kept":0,"cut":false,"hidden":true,"merged":[]}

{"sheet":"CopyList","index":40,"n_rows":13,"n_cols":9,"rows_kept":13,"cut":false,"hidden":true,"merged":[]}
[]
[]
[]
[]
[]
[]
[]
[]
[]
[]
[]
[null,null,null,null,"Наименование поставщика",null,"№ п/п","Способ приобретения"]
[null,null,null,null,null,null,null,"Способ приобретения","Реквизиты договора"]